{"text_format":"1","workbook":"xlsx","n_sheets":2,"sheets":["Shipping Pre-Alert Form","Form Instruction "],"not_rendered":{"charts":0,"images":20,"macros":1,"external_links":0,"defined_names":71,"comments":1,"pivot_tables":0},"unopened":[],"bounds":{"document_bytes":16777216,"sheet_cells":100000,"rows_first":2000,"rows_last":500,"rows_between":2000,"halvings":0,"cell_chars":16384,"cell_head_chars":4096},"cells_cut":0,"cells_raw":0,"read":"whole","date_system":"1900"}

{"sheet":"Shipping Pre-Alert Form","index":0,"n_rows":251,"n_cols":70,"rows_kept":251,"cut":false,"hidden":false,"merged":[[13,14,13,21],[14,14,14,21],[23,14,23,21],[16,14,16,21],[17,14,17,21],[18,14,18,21],[19,14,19,21],[20,14,20,21],[15,14,15,21],[21,14,21,21],[35,2,35,3],[33,1,34,1],[27,18,27,21],[49,2,49,3],[36,2,36,3],[37,2,37,3],[39,2,39,3],[33,14,33,15],[28,14,31,14],[40,2,40,3],[42,2,42,3],[54,11,61,15],[46,2,46,3],[45,2,45,3],[33,4,34,4],[22,6,22,13],[51,11,53,15],[51,1,52,9],[50,2,50,3],[48,2,48,3],[47,2,47,3],[26,14,26,21],[22,14,22,21],[24,14,24,21],[25,14,25,21],[23,4,23,5],[33,16,33,21],[18,9,18,13],[16,2,16,6],[15,2,15,6],[18,2,18,6],[19,9,19,13],[15,9,15,13],[7,19,7,21],[6,19,6,21],[8,14,8,21],[12,9,12,13],[1,19,1,20],[2,19,2,21],[4,19,4,21],[5,14,5,18],[5,19,5,21],[2,14,2,18],[1,14,1,18],[3,19,3,21],[7,9,7,13],[8,9,8,13],[9,14,9,21],[11,9,11,13],[5,3,5,5],[13,9,13,13],[0,14,0,21],[0,1,0,13],[4,8,4,13],[5,9,5,12],[9,9,9,13],[7,14,7,18],[3,14,3,18],[10,9,10,13],[11,14,11,21],[10,14,10,21],[12,2,12,6],[4,3,4,5],[3,8,3,13],[12,14,12,21],[6,9,6,12],[14,9,14,13],[44,2,44,3],[43,2,43,3],[20,9,20,13],[13,2,13,6],[16,9,16,13],[17,2,17,6],[24,4,24,5],[11,5,11,6],[22,4,22,5],[33,2,34,3],[14,2,14,6],[17,9,17,13],[19,2,19,6],[21,6,21,13]]}
[null,{"$f":"IF(AND(PrepaidIndicator=\"X\",PURFCK=\"X\"),AC6,IF(AND(PrepaidIndicator=\"X\",SNFCK=\"X\"),AC4,IF(AND(CollectIndicator=\"X\",PURFCK=\"X\"),AC5,IF(AND(PrepaidIndicator=\"X\",DSDFCK=\"X\"),AC2,IF(AND(CollectIndicator=\"X\",SNFCK=\"X\"),AC7,IF(AND(CollectIndicator=\"X\",DSDFCK=\"X\"),AC3,))))))","v":"PICK-UP REQUEST FORM (PURF) to Starboard Distribution Ctr, Freight Terms- COLLECT (Starboard Routed)"},null,null,null,null,null,null,null,null,null,null,null,null,null,null,null,null,null,null,null,null,"DESTINATW:ACION","PO PREFIX","ORIGIN",null,null,null,null,null,null,null,null,null,null,null,null,null,null,null,null,null,null,null,null,null,null,null,null,null,"VALIDATED PRX"]
[null,{"$f":"IF(Currency=\"STARBOARD DISTRIBUTION CTR\",AC34,AC33)","v":"Send the completed form as an email attachment to the to PORT AGENT, dlaccountspayable@starboardcruise.com, and to  "},null,null,null,null,null,null,null,null,null,null,null,null,null,null,null,null,null,null,null,null,"Starboard DC",47,"U.S./Canada/North America",null,null,null," DIRECT SHIP DELIVERY PRE-ALERT FORM (Freight Terms - PREPAID) Shipper Notification Form        ",null,null,null,null,"*ATTENTION: ALL INTERNATIONAL OCEAN SHIPMENTS INTO US REQUIRE ISF 10+2. CBS requires an ISF Transmission 72 hrs prior to cargo loading on vessel",null,null,null,null,null,null,null,null,null,null,null,null,null,null,null,null,{"$f":"HLOOKUP(#REF!,$BG$1:$BS$14,2,FALSE)","v":{"$error":"#REF!"}}]
[null,{"$f":"IF(PrepaidIndicator=\"X\",\"logistics.prepaid@starboardcruise.com; transportationinbound@starboardcruise.com\",IF(CollectIndicator=\"X\",\"transportationinbound@starboardcruise.com\",\"\"))","v":"transportationinbound@starboardcruise.com"},null,null,null,null,null,null,null,null,null,null,null,null,null,null,null,null,null,null,null,null,"Direct Ship Delivery",49,"European/Asia/Others",1,1,null," DIRECT SHIP DELIVERY PRE-ALERT FORM (Freight Terms - COLLECT)  Starboard Routed",null,null,null,null,"ISF 10 +2 NUMBER: ",null,null,null,null,null,null,null,null,null,null,null,null,null,null,null,null,{"$f":"HLOOKUP(#REF!,$BG$1:$BS$14,3,FALSE)","v":{"$error":"#REF!"}}]
[null,null,null,null,null,null,null,null,{"$f":"IF(OR(J8<J15,J8>J16),AC31,\"\")","v":""},null,null,null,null,null,null,null,null,null,null,"Destination Discription",null,null,null,null,null,{"$f":"Z3+0.1","v":1.1000000000000001},1.1000000000000001,null,"SHIPPING NOTIFICATION FORM (To Starboard Distribution Ctr) Freight Terms- PREPAID",null,null,null,null,"Enter ISF Number in this Field (Type Over)",null,null,null,null,null,null,null,null,null,null,null,null,null,null,null,null,{"$f":"HLOOKUP(#REF!,$BG$1:$BS$14,4,FALSE)","v":{"$error":"#REF!"}}]
[null,"Shipment Origin:",null,"U.S./Canada/North America",null,null,"Select",null,{"$f":"IF(AND(PrepaidIndicator=\"X\",SNFCK=\"X\"),AH2,\"\")","v":""},null,null,null,null,null,null,null,null,null,null,{"$f":"IF(VLOOKUP(AA3,BF:BM,2,FALSE)=0,\"\",VLOOKUP(AA3,BF:BM,2,FALSE))","v":""},null,null,null,null,null,1.2000000000000002,1.2000000000000002,null,"PICK-UP REQUEST FORM (PURF) to Starboard Distribution Ctr, Freight Terms- COLLECT (Starboard Routed)",null,null,null,null,null,null,null,null,null,null,null,null,null,null,null,null,null,null,null,null,null,{"$f":"HLOOKUP(#REF!,$BG$1:$BS$14,5,FALSE)","v":{"$error":"#REF!"}}]
[null,"Shipment Destination:",null,null,null,null,"Select",null,{"$f":"IF(AND(PrepaidIndicator=\"X\",SNFCK=\"X\"),AH3,\"\")","v":""},null,null,null,null," ",null,null,null,null,null,null,null,null,null,null,null,1.3000000000000003,1.3000000000000003,null,"FORM ERROR - PLEASE SELECT COLLECT TERMS WITH THIS FORM",null,null,null,null,null,null,null,null,null,null,null,null,null,null,null,null,null,null,null,null,null,{"$f":"HLOOKUP(#REF!,$BG$1:$BS$14,6,FALSE)","v":{"$error":"#REF!"}}]
[null,null,null,null,null,null,null,null,"MODE:","GROUND TRANSPORTATION",null,null,null,"Select",null,null,null,null,null,"",null,null,null,null,null,1.4000000000000004,1.4000000000000004,null,"FORM ERROR - PLEASE SELECT PREPAID TERMS WITH THIS FORM",null,null,null,null,null,null,null,null,null,null,null,null,null,null,null,null,null,null,null,null,null,{"$f":"HLOOKUP(#REF!,$BG$1:$BS$14,7,FALSE)","v":{"$error":"#REF!"}}]
[null,null,null,null,null,null,null,null,"READY DATE",null,null,null,null,null,null,null,null,null,null,null,null,null,null,null,null,null,{"$f":"AA7+0.1","v":1.5000000000000004},null,"SELECT FORM TYPE",null,null,null,null,null,null,null,null,null,null,null,null,null,null,null,null,null,null,null,null,null,{"$f":"HLOOKUP(#REF!,$BG$1:$BS$14,8,FALSE)","v":{"$error":"#REF!"}}]
[null,null,null,null,null,null,null,null,"READY TIME",null,null,null,null,null,"PLEASE CONSIGN / SHIP TO PORT AGENT:",null,null,null,null,null,null,null,null,null,null,null,null,null,null,null,null,null,null,null,null,null,null,null,null,null,null,null,null,null,null,null,null,null,null,null,{"$f":"HLOOKUP(#REF!,$BG$1:$BS$14,9,FALSE)","v":{"$error":"#REF!"}}]
[null,"TO:","Starboard Logistics Department",null,null,null,null,null,"CLOSE TIME ",null,null,null,null,null,{"$f":"IF(VLOOKUP(AA3,BF:BM,2,FALSE)=0,\"\",VLOOKUP(AA3,BF:BM,2,FALSE))","v":""},null,null,null,null,null,null,null,null,null,null,null,null,null,"ATTENTION PORT AGENTS:"]
[null,"FOR:","Starboard Cruise Services ",null,null,null,null,null,"FORWARDER"," ",null,null,null,null,{"$f":"IF(VLOOKUP(AA3,BF:BM,3,FALSE)=0,\"\",VLOOKUP(AA3,BF:BM,3,FALSE))","v":""},null,null,null,null,null,null,null,null,null,null,null,null,null,"PURCHASE ORDER Number must be referenced on invoice, otherwise invoice will be returned.",null,null,null,null,null,null,null,null,null,null,null,null,null,null,null,null,null,null,null,null,null,{"$f":"HLOOKUP(#REF!,$BG$1:$BS$14,10,FALSE)","v":{"$error":"#REF!"}}]
[null,null,null,null,null,null,null,null,"CARRIER NAME"," ",null,null,null,null,{"$f":"IF(VLOOKUP(AA3,BF:BM,4,FALSE)=0,\"\",VLOOKUP(AA3,BF:BM,4,FALSE))","v":""},null,null,null,null,null,null,null,null,null,null,null,null,null,"PROOF OF DELIVERY (POD)  MUST BE SIGNED BY THE GIFT SHOP MANAGER  AND EMAILED TO : sales_audit@starboardcruise.com",null,null,null,null,null,null,null,null,null,null,null,null,null,null,null,null,null,null,null,null,null,{"$f":"HLOOKUP(#REF!,$BG$1:$BS$14,11,FALSE)","v":{"$error":"#REF!"}}]
[null,"SHIPPER:",null,null,null,null,null,null,"PRO/WAYBILL/BOL #",null,null,null,null,null,{"$f":"IF(VLOOKUP(AA3,BF:BM,5,FALSE)=0,\"\",VLOOKUP(AA3,BF:BM,5,FALSE))","v":""},null,null,null,null,null,null,null,null,null,null,null,null,null,null,null,null,null,null,null,null,null,null,null,null,null,null,null,null,null,null,null,null,null,null,null,{"$f":"HLOOKUP(#REF!,$BG$1:$BS$14,12,FALSE)","v":{"$error":"#REF!"}}]
[null,"ADDRESS:",null,null,null,null,null,null,"BOOKING #:",null,null,null,null,null,{"$f":"IF(VLOOKUP(AA3,BF:BM,6,FALSE)=0,\"\",VLOOKUP(AA3,BF:BM,6,FALSE))","v":""},null,null,null,null,null,null,null,null,null,null,null,null,null,"ATTENTION  US/Canada/North American Origins",null,null,null,null,null,null,null,null,null,null,null,null,null,null,null,null,null,null,null,null,null,{"$f":"HLOOKUP(#REF!,$BG$1:$BS$14,13,FALSE)","v":{"$error":"#REF!"}}]
[null,null,null,null,null,null,null,null,"PO Start Ship Window",null,null,null,null,null,{"$f":"IF(VLOOKUP(AA3,BF:BM,7,FALSE)=0,\"\",VLOOKUP(AA3,BF:BM,7,FALSE))","v":""},null,null,null,null,null,null,null,null,null,null,null,null,null,"2. Final Invoices must be provided to Starboard Logistics"]
[null,null,null,null,null,null,null,null,"PO Stop Ship Window",null,null,null,null,null,{"$f":"IF(VLOOKUP(AA3,BF:BM,8,FALSE)=0,\"\",VLOOKUP(AA3,BF:BM,8,FALSE))","v":""},null,null,null,null,null,null,null,null,null,null,null,null,null,"3. Liquor or Tobacco shipments must have ATF documents sent to Starboard Logistics along with this form"]
[null,"CONTACT:",null,null,null,null,null,null,{"$f":"IF(AND(CollectIndicator=\"X\",PURFCK=\"X\"),\"Carrier Account Number\",\"\")","v":"Carrier Account Number"},null,null,null,null,null,"IF PORT AGENT IS NOT LISTED, PLEASE TYPE IN INFORMATION BELOW:",null,null,null,null,null,null,null,null,null,null,null,null,null,"4. In-Bond shipments must have 7512 (IT) sent to Starboard CDC Department and Forwarder prior to shipment "]
[null,"PHONE #:",null,null,null,null,null,null,"Attn: ","Starboard Transportation Team",null,null,null,null,null,null,null,null,null,null,null,null,null,null,null,null,null,null,"1.  A Correct Consignment and Shipping address as outlined in the body of this form"]
[null,"FAX #:"]
[null,"email:",null,null,null,null,null,null," "," ",null,null,null,null,null,null,null,null,null,null,null,null,null,null,null,null,null,null,"NON North American Origins"]
[null,null,null,null,null,null,null,null,"email:","transportationinbound@starboardcruise.com",null,null,null,null,null,null,null,null,null,null,null,null,null,null,null,null,null,null,"2. Final Invoices must be sent to the Accounts Payable Department within 24 hours after pick-up."]
[null,"Freight Payment Terms",null,null,"Form Type",null,"For the most current Vendor Requirements please visit access the websight indicated below"]
[null,"X","Collect",null,"Shipping Notification Form (SNF) Miami DC",null,"http://logistics.starboardcruise.com "]
[null,null,"Prepaid","X","Pick-Up Request Form (PURF)  Miami DC",null," Are goods accompanied by a CITES declaration?",null,null,null,null," ","NO"," ",null,null,null,null,null,null,null,null,null,null,null,null,null,null,"PRIOR NOTIFICATION SUBMISSION REQUIRED"]
[null,"STB Freight Terms",null,null,"Direct Ship Delivery Form (DSDF)",null," Are goods mentioned below DGR or Hazardous Material?",null,null,null,null," ","NO"," ",null,null,null,null,null,null,null,null,null,null,null,null,null,null,"Country of Origin"]
[null,"X","FCA- Named Place of Origin",null,null,null,"  ATF or IT shipment?",null,null,null,null,"In bond?","NO","(CK IF YES)",null,null,null,null,null,null,null,null,null,null,null,null,null,null,"Country of Exportation"]
[null,null,"FCA- Named Consolidation Point",null,null,"Temp Control: Minimum",null,null,"Maximum",null,"Scale",null,null,null,null,null,null,null,null,null,null,null,null,null,null,null,null,null,"Related Parties (if applicable)"]
[null,null,"DAP- Delivered at Place",null,null,null,null,"Required Information for Prior Submission",null,null,null,null,null,null,null,null,null,null,"Pallet Type and Quantity Summary",null,null,null,null,null,null,null,null,null,"Manufacture Name"]
[null,null,"DAT- Delivered at Terminal",null,null,null,null,{"$f":"IF(AND(PrepaidIndicator=\"X\",SNFCK=\"X\"),AC25,\"\")","v":""},null,null,null,null,null,null,null,null,null,null,null,"  Regular Stackable",null,null,null,null,null,null,null,null,"ISF 10+2 Filler Information"]
[null,null,"DDP",null,null,null,null,{"$f":"IF(AND(PrepaidIndicator=\"X\",SNFCK=\"X\"),AC26,\"\")","v":""},null,null,null,null,null,null,null,null,null,null,null,"Regular Non-Stackable"]
[null,null,"Local Hand Delv (Use with DDP)",null,null,null,null,{"$f":"IF(AND(PrepaidIndicator=\"X\",SNFCK=\"X\"),AC27,\"\")","v":""},null,null,null,null,null,null,null,null,null,null,null,"Box (Gaylord) Pallets",null,null,null,null,null,null,null,null,"WARNING: VENDOR COMPLIANCE ERROR- READY DATE MUST FALL WITHIN SHIPPING WINDOW"]
[null,null,null,null,null,null,null,{"$f":"IF(AND(PrepaidIndicator=\"X\",SNFCK=\"X\"),AC28,\"\")","v":""},null,null,null,null,null,null,null,null,null,null,null,"Total Pallet Quantity",{"$f":"IF(SUM(U29:U31)>0,SUM(U29:U31),\"\")","v":""},{"$f":"IF(AND(U32>U29,U32>U30,U32>U31),\"Mixed\",IF(U29>0,\"Stackable\",IF(U30>0,\"Non-Stackable\",IF(U31>0,\"Gaylord\",\"\"))))","v":""}]
[null,null,null,null,null,null,null,{"$f":"IF(AND(PrepaidIndicator=\"X\",SNFCK=\"X\"),AC29,\"\")","v":""},null,null,null,null,null,null,null,null,null,null,null,null,null,null,null,null,null,null,null,null,"Send the completed form as an email attachment to the to PORT AGENT, dlaccountspayable@starboardcruise.com, and to  "]
[null,"                     PO Number","                                            Commodity HTSUS Number (at 6 digit level)",null,"                      Merchandise Inv#","Commodity","Units","UOM","Qty of Cartons","MEASUREMENTS PER CARTON",null,null,null,null,"Total per Carton Qty",null,"Pallet Detail (summerized by unique dimensions)",null,null,null,null,null,null,null,null,null,null,null,"Send the completed form as an email attachment to: dlaccountspayable@starboardcruise.com and to  "]
[null,null,null,null,null,null,null,null,"List by common size and dimensions",{"$f":"IF($D$5=\"U.S./Canada/North America\",\"Weight in lbs.\",\"Weight in kgs.\")","v":"Weight in lbs."},{"$f":"IF($D$5=\"U.S./Canada/North America\",\"L     inches\",\"L      cm\")","v":"L     inches"},{"$f":"IF($D$5=\"U.S./Canada/North America\",\"W     inches\",\"W    cm\")","v":"W     inches"},{"$f":"IF($D$5=\"U.S./Canada/North America\",\"H      inches\",\"H      cm\")","v":"H      inches"},{"$f":"IF($D$5=\"U.S./Canada/North America\",\"Volume in Feet\",\"Volume in Meters\")","v":"Volume in Feet"},{"$f":"IF($D$5=\"U.S./Canada/North America\",\"Gross Weight in Pounds\",\"Gross Weight in Kilos\")","v":"Gross Weight in Pounds"},{"$f":"IF($D$5=\"U.S./Canada/North America\",\"Gross Volume (cubic ft)\",\"Gross Volume (Cubic Meters\")","v":"Gross Volume (cubic ft)"},"Number of Pallets","Weight per Pallet",{"$f":"IF($D$5=\"U.S./Canada/North America\",\"L inches\",\"L cm\")","v":"L inches"},{"$f":"IF($D$5=\"U.S./Canada/North America\",\"W inches\",\"W cm\")","v":"W inches"},{"$f":"IF($D$5=\"U.S./Canada/North America\",\"H inches\",\"H cm\")","v":"H inches"},{"$f":"IF($D$5=\"U.S./Canada/North America\",\"Volume in Feet\",\"Volume in Meters\")","v":"Volume in Feet"}]
[null,null,null,null,null,null,null,null,null,null,null,null,null,{"$f":"IF(K36*L36*M36>0,(IF($D$5=\"U.S./Canada/North America\",K36*L36*M36/1728,K36*L36*M36/1000000)),\"\")","v":""},{"$f":"IF(J36>0,(IF(I36>0,J36*I36,\"\")),\"\")","v":""},{"$f":"IF(N36<>\"\",(IF(I36>0,N36*I36,\"\")),\"\")","v":""},null,null,null,null,null,{"$f":"IF(S36*T36*U36>0,(IF($D$5=\"U.S./Canada/North America\",S36*T36*U36/1728,S36*T36*U36/1000000)),\"\")","v":""}]
[null,null,null,null,null,null,null,null,null,null,null,null,null,{"$f":"IF(K37*L37*M37>0,(IF($D$5=\"U.S./Canada/North America\",K37*L37*M37/1728,K37*L37*M37/1000000)),\"\")","v":""},{"$f":"IF(J37>0,(IF(I37>0,J37*I37,\"\")),\"\")","v":""},{"$f":"IF(N37<>\"\",(IF(I37>0,N37*I37,\"\")),\"\")","v":""},null,null,null,null,null,{"$f":"IF(S37*T37*U37>0,(IF($D$5=\"U.S./Canada/North America\",S37*T37*U37/1728,S37*T37*U37/1000000)),\"\")","v":""}]
[null,null,null,null,null,null,null,null,null,null,null,null,null,{"$f":"IF(K38*L38*M38>0,(IF($D$5=\"U.S./Canada/North America\",K38*L38*M38/1728,K38*L38*M38/1000000)),\"\")","v":""},"","",null,null,null,null,null,{"$f":"IF(S38*T38*U38>0,(IF($D$5=\"U.S./Canada/North America\",S38*T38*U38/1728,S38*T38*U38/1000000)),\"\")","v":""}]
[]
[null,null,null,null,null,null,null,{"$f":"IF(AND(G40<>\"\",$F40<>\"*\",$F40<>\"\"\"\"),IF(ISNA(VLOOKUP($F40,$AK:$AL,2,FALSE)),\"\",VLOOKUP($F40,$AK:$AL,2,FALSE)),\"\")","v":""},null,null,null,null,null,"","","",null,null,null,null,null,{"$f":"IF(S40*T40*U40>0,(IF($D$5=\"U.S./Canada/North America\",S40*T40*U40/1728,S40*T40*U40/1000000)),\"\")","v":""}]
[null,null,null,null,null,null,null,{"$f":"IF(AND(G41<>\"\",$F41<>\"*\",$F41<>\"\"\"\"),IF(ISNA(VLOOKUP($F41,$AK:$AL,2,FALSE)),\"\",VLOOKUP($F41,$AK:$AL,2,FALSE)),\"\")","v":""}," ",null,null,null,null,"","","",null,null,null,null,null,{"$f":"IF(S41*T41*U41>0,(IF($D$5=\"U.S./Canada/North America\",S41*T41*U41/1728,S41*T41*U41/1000000)),\"\")","v":""}]
[]
[null,null,null,null,null,null,null,{"$f":"IF(AND(G43<>\"\",$F43<>\"*\",$F43<>\"\"\"\"),IF(ISNA(VLOOKUP($F43,$AK:$AL,2,FALSE)),\"\",VLOOKUP($F43,$AK:$AL,2,FALSE)),\"\")","v":""}," ",null,null,null,null,{"$f":"IF(K43*L43*M43>0,(IF($D$5=\"U.S./Canada/North America\",K43*L43*M43/1728,K43*L43*M43/1000000)),\"\")","v":""},{"$f":"IF(J43>0,(IF(I43>0,J43*I43,\"\")),\"\")","v":""},{"$f":"IF(N43<>\"\",(IF(I43>0,N43*I43,\"\")),\"\")","v":""},null,null,null,null,null,{"$f":"IF(S43*T43*U43>0,(IF($D$5=\"U.S./Canada/North America\",S43*T43*U43/1728,S43*T43*U43/1000000)),\"\")","v":""}]
[null,null,null,null,null,null,null,""," ",null,null,null,null,{"$f":"IF(K44*L44*M44>0,(IF($D$5=\"U.S./Canada/North America\",K44*L44*M44/1728,K44*L44*M44/1000000)),\"\")","v":""},{"$f":"IF(J44>0,(IF(I44>0,J44*I44,\"\")),\"\")","v":""},{"$f":"IF(N44<>\"\",(IF(I44>0,N44*I44,\"\")),\"\")","v":""},null,null,null,null,null,""]
[null,null,null,null,null,null,null,""," ",null,null,null,null,{"$f":"IF(K45*L45*M45>0,(IF($D$5=\"U.S./Canada/North America\",K45*L45*M45/1728,K45*L45*M45/1000000)),\"\")","v":""},{"$f":"IF(J45>0,(IF(I45>0,J45*I45,\"\")),\"\")","v":""},{"$f":"IF(N45<>\"\",(IF(I45>0,N45*I45,\"\")),\"\")","v":""},null,null,null,null,null,""]
[null,null,null,null,null,null,null,""," ",null,null,null,null,{"$f":"IF(K46*L46*M46>0,(IF($D$5=\"U.S./Canada/North America\",K46*L46*M46/1728,K46*L46*M46/1000000)),\"\")","v":""},{"$f":"IF(J46>0,(IF(I46>0,J46*I46,\"\")),\"\")","v":""},{"$f":"IF(N46<>\"\",(IF(I46>0,N46*I46,\"\")),\"\")","v":""},null,null,null,null,null,""]
[null,null,null,null,null,null,null,""," ",null,null,null,null,{"$f":"IF(K47*L47*M47>0,(IF($D$5=\"U.S./Canada/North America\",K47*L47*M47/1728,K47*L47*M47/1000000)),\"\")","v":""},{"$f":"IF(J47>0,(IF(I47>0,J47*I47,\"\")),\"\")","v":""},{"$f":"IF(N47<>\"\",(IF(I47>0,N47*I47,\"\")),\"\")","v":""},null,null,null,null,null,""]
[null,null,null,null,null,null,null,""," ",null,null,null,null,"","","",null,null,null,null,null,""]
[null,null,null,null,null,null,null,""," ",null,null,null,null,"","","",null,null,null,null,null,""]
[null,null,null,null,null,null,null,""," ",null,null,null,null,"","","",null,null,null,null,null,""]
[null,null,null,null,null,null,null,""," ",null,null,null,null,"","","",null,null,null,null,null,""]
[null,"ATTENTION VENDORS:  Failure to provide the following may result in a vendor non-compliance penalty being assessed against your company.",null,null,null,null,null,null,null,null,null,{"$f":"IF(CollectIndicator=\"X\",\"Bill Collect Freight Charges To  Attn: Freight Accounts Payable Dept\",\"Starboard Corporate Office\")","v":"Bill Collect Freight Charges To  Attn: Freight Accounts Payable Dept"},null,null,null,null,null,null,null,null,null,""]
[null,null,null,null,null,null,null,null,null,null,null,null,null,null,null,null,null,null,null,null,null,""]
[null,null,null,null,null,null,null,null,null,null,null,null,null,null,null,null,null,null,null,null,null,""]
[null,"1. A Correct Consigment and Shipping address as outlined in the body of this form",null,null,null,null,null,null,null,null,null,"Starboard Cruise Services                   8400 NW 36th Street, Suite 600          Miami, FL 33166",null,null,null,null,null,null,null,null,null,""]
[null,{"$f":"IF(AND($D$5=\"U.S./Canada/North America\",Currency=\"STARBOARD DISTRIBUTION CTR\"),AC15,AC21)","v":"2. Final Invoices must be sent to the Accounts Payable Department within 24 hours after pick-up."},null,null,null,null,null,null,null,null,null,null,null,null,null,null,null,null,null,null,null,""]
[null,{"$f":"IF(AND($D$5=\"U.S./Canada/North America\",Currency=\"STARBOARD DISTRIBUTION CTR\"),AC16,\"\")","v":""},null,null,null,null,null,null,null,null,null,null,null,null,null,null,null,null,null,null,null,""]
[null,{"$f":"IF(AND($D$5=\"U.S./Canada/North America\",Currency=\"STARBOARD DISTRIBUTION CTR\"),AC17,\"\")","v":""},null,null,null,null,null,null,null,null,null,null,null,null,null,null,null,null,null,null,null,""]
[null,null,null,null,null,null,null,null,null,null,null,null,null,null,null,null,null,null,null,null,null,""]
[null,null,null,null,null,null,null,null,null,null,null,null,null,null,null,null,null,null,null,null,null,""]
[null,null,null,null,null,null,null,null,null,null,null,null,null,null,null,null,null,null,null,null,null,""]
[null,null,null,null,null,null,null,null,null,null,null,null,null,null,null,null,{"$f":"SUBTOTAL(9,Q36:Q61)","v":0},{"$f":"SUBTOTAL(9,R36:R61)","v":0},null,null,null,{"$f":"SUBTOTAL(9,V36:V61)","v":0}]
[]
[]
[]
[null,null,null,null,null,null,null,null,null,null,null,null,null,null,null," "]
[null,null,null,null,null,null,null,null,null,null,null,null,null,null,null," "]
[]
[]
[]
[]
[]
[]
[]
[]
[]
[]
[]
[]
[]
[]
[]
[]
[]
[]
[]
[]
[]
[]
[]
[null,null,null,null,null,null,null,null,null,null,null,null,null,null,null,null,null,null,null,null,null,null,null,null,null,null,null,null,null,null,null,null,"Customer ID","Customer Name","MODE DESCRIPTION","MODE CODE","COMMODITY","DEFAULT COMMODITY UOM","PO PREFIX","PO REGION NAME","CITES","HAZARDOUS","TEMP CONTROL","STACKABLE PLTS","JEWELRY OR WATCHES","IN BOND","ATF DOCS","INTL DOCS","UOM","UOM DESCRIPTION","YES NO","COORDINATOR NUMBER","COORDINATOR NAME","COORDINATOR PHONE","COORDINATOR FAX","COORDINATOR EMAIL","COORDINATOR INITIALS","CONSIGN SHIP TO NUMBER","CONSIGN SHIP TO NAME","CONSIGNEE ID","CONSIGN SHIP TO ADDR 1","CONSIGN SHIP TO ADDR 2","CONSIGN SHIP TO ADDR NOTES 3","CONSIGN SHIP TO ADDR NOTES 4","CONSIGN SHIP TO ADDR NOTES 5","STACKABLE PALLETS STATUS","TEMPERATURE SCALE","Ship Name and No.","Ship Number","Export to TMS Indicator"]
[null,null,null,null,null,null,null,null,null,null,null,null,null,null,null,null,null,null,null,null,null,null,null,null,null,null,null,null,null,null,null,null,"STBASI","STARBOARD ASIA","AIR TRANSPORT","AIR","ACCESSORIES","UN",47,"STARBOARD CRUISE SERVICES","YES","YES","YES","YES","YES","ATF","YES","YES","CS","CASE","YES",1,"DSD Coordinator","   (786) 845-7362"," ++1 786-845-1105","prepaid_inboundlogistics@starboardcruise.com"," ",1,null,null,null,null,null,null,null,"Mixed","Celsius","STARBOARD DISTRIBUTION CTR"," ","X"]
[null,null,null,null,null,null,null,null,null,null,null,null,null,null,null,null,null,null,null,null,null,null,null,null,null,null,null,null,null,null,null,null,"STBUSA","STARBOARD USA","GROUND TRANSPORTATION","GRD","ALCOHOL","CS",49,"MIAMI CL STARBOARD DP","NO","NO","NO","NO","NO","IT","NO","NO","UN","UNITS","NO",2,"DSD Asoc Manager","   (786) 845-7492"," ++1 786-845-1105","prepaid_inboundlogistics@starboardcruise.com"," ",2,"STARBOARD CRUISE SERVICES DISTRIBUTION CENTER"," 9290 N.W. 112th Avenue","Suite 8","Miami, Florida  USA 33178","PH 1 (305) 728-4532",null,"dllogisticsinbound@starboardcruise.com",null,null,"002-COS VICTORIA"," "]
[null,null,null,null,null,null,null,null,null,null,null,null,null,null,null,null,null,null,null,null,null,null,null,null,null,null,null,null,null,null,null,null,"STBEUR","STARBOARD EUROPE","OCEAN MARITIME TRANSPORT","OCN","ALMOND ROCA","CS","DC",null,null,null,null,null,null,null,null,null,null,null,null,3,"DSD Manager","  (786) 845-7498"," ++1 786-845-1105","prepaid_inboundlogistics@starboardcruise.com"," ",3,"ARUBA","M/V  (Vessel Name) VS Import C/O Mastercargo Inc.","Wayaca 45 ","Aruba Dutch Caribbean","Patricia Suarez / \nVivian Suarez","(305) 418-9200 / Ext: 302 / 303 / 309","vsimia@vsimportservices.com","NonStack","Fahrenheit","007-COS NEO ROMANTICA"," "]
[null,null,null,null,null,null,null,null,null,null,null,null,null,null,null,null,null,null,null,null,null,null,null,null,null,null,null,null,null,null,null,null,null,null,null,null,"ALMONDS","CS",null,null,null,null,null,null,null,null,null,null,null,null,null,null,null,null,null,null,null,4,"ALESUND - NORWAY","M/V  (Vessel Name) C/O Blue Water Shipping A/S","LUHRTOPPEN 2, 4TH FLOOR","LOERENSKOG 1470, NORWAY","Ann Kristin Elfgen","47-2102-0835","air_osl_imp@bws.dk; anke@bws.dk; Cruise_scandinavia@bws.dk","Stackable",null,"045-CCL SUNSHINE"," "]
[null,null,null,null,null,null,null,null,null,null,null,null,null,null,null,null,null,null,null,null,null,null,null,null,null,null,null,null,null,null,null,null,null,null,null,null,"BACKPACKS","UN",null,null,null,null,null,null,null,null,null,null,null,null,null,null,null,null,null,null,null,5,"AMSTERDAM - NETHERLANDS","M/V  (Vessel Name) C/O SSL Ship Spares Logistics BV","Bunschotenweg 115 Port number 2678  ","3089 KB Rotterdam  The Netherlands","Lars van Grevenbroek ","31 (0)10-294-1224 ","lars.grevenbroek@burando.eu; laura.verheij@burando.eu; jelle@burando.eu ","Gaylord",null,"061-CCL SUNRISE"," "]
[null,null,null,null,null,null,null,null,null,null,null,null,null,null,null,null,null,null,null,null,null,null,null,null,null,null,null,null,null,null,null,null,null,null,null,null,"BAGS","UN",null,null,null,null,null,null,null,null,null,null,null,null,null,null,null,null,null,null,null,6,"ANCONA  - ITALY","M/V  (Vessel Name) C/O PRIANO  MARCHELLI  & C.SRL","VIA DEGLI ARTIGINAI N.58/A\n BOLZANETO, ","16162 GENOA, ITALY ","Andrea Giachero","011-39-010-23581","d.calabretta@prianomarchelli.it; onboardservices@prianomarchelli.it ",null,null,"090-CZ DREAM"]
[null,null,null,null,null,null,null,null,null,null,null,null,null,null,null,null,null,null,null,null,null,null,null,null,null,null,null,null,null,null,null,null,null,null,null,null,"BASKETS","UN",null,null,null,null,null,null,null,null,null,null,null,null,null,null,null,null,null,null,null,7,"ANTIGUA - BARBUDA","To The MASTER OF M/V   (Vessel Name) C/O F & G TRADING CO","Lower Dickenson Bay Street","St. John Antigua, Barbuda","Vivian Suarez, \nPatricia Suarez, \nFoston Jorge","305-418-9200 / \n268-764-3040","vivian@vsimportservices.com; patricia@vsimportservices.com; vsimia@vsimportservices.com; info@fandgtrading.com",null,null,"096-PCL STAR PRINCESS"]
[null,null,null,null,null,null,null,null,null,null,null,null,null,null,null,null,null,null,null,null,null,null,null,null,null,null,null,null,null,null,null,null,null,null,null,null,"BEEF JERKY","CS",null,null,null,null,null,null,null,null,null,null,null,null,null,null,null,null,null,null,null,8,"AQABA - JORDAN","M/V  (Vessel Name) C/O  - IN TRANSIT\nC/O  T. GARGOUR & FILS\n","YASSIN MADI & BROS BUILDING\nCORNICHE - KING HUSSEIN STREET","AQABA - JORDAN","Samia Zabaneh ","962-32012315","samia_ship@tgf.com.jo ",null,null,"125-SVS SILVER WHISPER"," "]
[null,null,null,null,null,null,null,null,null,null,null,null,null,null,null,null,null,null,null,null,null,null,null,null,null,null,null,null,null,null,null,null,null,null,null,null,"BELTS","UN",null,null,null,null,null,null,null,null,null,null,null,null,null,null,null,null,null,null,null,9,"AUCKLAND - NEW ZEALAND","Inchcape-McKay LTD \nM/V  (Vessel Name) ","2 Akaroa Street, \nParnell 1152 ","Auckland, New Zealand ","Susan Zhang / \nManuel Arado / \nRichard Carvalho / \nKatja Mewes","011- 64 9 309 4266","susan.zhang@iss-mckay.co.nz; \nclearance@hobbsglobal.co.nz; \nshirley@hobbsglobal.co.nz; ",null,null,"126-SVS SILVER CLOUD"," "]
[null,null,null,null,null,null,null,null,null,null,null,null,null,null,null,null,null,null,null,null,null,null,null,null,null,null,null,null,null,null,null,null,null,null,null,null,"BOOKS","UN",null,null,null,null,null,null,null,null,null,null,null,null,null,null,null,null,null,null,null,10,"BALTIMORE - US","M/V (VESSEL NAME)   C/O TWC CFS Inc. C/O VSI, INC","145-02 156th Street, Jamaica,","11434 NEW YORK","Vivian Suarez / ","305-418-9200 / \n 718-527-0125","vsijfk@vsimportservices.com; vsimia@vsimportservices.com",null,null,"127-SVS SILVER SPIRIT"," "]
[null,null,null,null,null,null,null,null,null,null,null,null,null,null,null,null,null,null,null,null,null,null,null,null,null,null,null,null,null,null,null,null,null,null,null,null,"BOXES","UN",null,null,null,null,null,null,null,null,null,null,null,null,null,null,null,null,null,null,null,11,"BARCELONA - SPAIN","M/V  (Vessel Name C/O LANTIMAR SL\n- ILLAEXPORT S.A.","Sector C, Calle 5 - Zona Franca Aduanera","08040 Barcelona - SPAIN"," Paula Aviles / \nAlicia Diaz / \nNadia Petsova /","34-64-998-9974 / \n34-62-940-1166 / \n34-63-092-7105 / ","starboard@lantimar.com; logistics.bcn@lantimar.com",null,null,"128-SVS SILVER WIND"," "]
[null,null,null,null,null,null,null,null,null,null,null,null,null,null,null,null,null,null,null,null,null,null,null,null,null,null,null,null,null,null,null,null,null,null,null,null,"CAMERA","UN",null,null,null,null,null,null,null,null,null,null,null,null,null,null,null,null,null,null,null,12,"BARI - ITALY","M/V  (Vessel Name) C/O PRIANO  MARCHELLI  & C.SRL","VIA DEGLI ARTIGINAI N.58/A\n BOLZANETO, ","16162 GENOA, ITALY ","Andrea Giachero","011-39-010-23581","d.calabretta@prianomarchelli.it; onboardservices@prianomarchelli.it ",null,null,"129-SVS SILVER SHADOW"," "]
[null,null,null,null,null,null,null,null,null,null,null,null,null,null,null,null,null,null,null,null,null,null,null,null,null,null,null,null,null,null,null,null,null,null,null,null,"CANDY","CS",null,null,null,null,null,null,null,null,null,null,null,null,null,null,null,null,null,null,null,13,"BAYONNE - US","M/V (VESSEL NAME)   C/O TWC CFS Inc. C/O VSI, INC","145-02 156th Street, Jamaica,","11434 NEW YORK","Vivian Suarez / ","305-418-9200 / \n 718-527-0125","vsijfk@vsimportservices.com; vsimia@vsimportservices.com",null,null,"141-HAL ZAANDAM"]
[null,null,null,null,null,null,null,null,null,null,null,null,null,null,null,null,null,null,null,null,null,null,null,null,null,null,null,null,null,null,null,null,null,null,null,null,"CERAMIC GOODS","UN",null,null,null,null,null,null,null,null,null,null,null,null,null,null,null,null,null,null,null,14,"BERGEN - NORWAY","M/V  (Vessel Name) C/O Blue Water Shipping A/S","LUHRTOPPEN 2, 4TH FLOOR","LOERENSKOG 1470, NORWAY","Ann Kristin Elfgen","47-2102-0835","air_osl_imp@bws.dk\nanke@bws.dk\nCruise_scandinavia@bws.dk",null,null,"149-HAL VOLENDAM"," "]
[null,null,null,null,null,null,null,null,null,null,null,null,null,null,null,null,null,null,null,null,null,null,null,null,null,null,null,null,null,null,null,null,null,null,null,null,"CLOTHING","UN",null,null,null,null,null,null,null,null,null,null,null,null,null,null,null,null,null,null,null,15,"BILBAO - SPAIN","M/V  (Vessel Name)  C/O LANTIMAR – SERGU, S.A.\n","C/San Vicente Nº 8 Edificio Albia I Planta 11 – Departamento 5","48001 BILBAO – Spain "," Paula Aviles / \nAlicia Diaz / ","34-64-998-9974 / \n34-62-940-1166 /  ","starboard@lantimar.com; trafico@sergusa.com ",null,null,"151-HAL ZUIDERDAM"," "]
[null,null,null,null,null,null,null,null,null,null,null,null,null,null,null,null,null,null,null,null,null,null,null,null,null,null,null,null,null,null,null,null,null,null,null,null,"COFFEE","CS",null,null,null,null,null,null,null,null,null,null,null,null,null,null,null,null,null,null,null,16,"BOSTON - US","M/V (VESSEL NAME)   C/O Eagle Air Freight C/O VSI, INC","140 Eastern Avenue\nChelsea, ","02150 Massachusetts","Vivian Suarez / ","305-418-9200 / \n 718-527-0125 / \n617-884-4436","vsimia@vsimportservices.com",null,null,"157-CEL MILLENNIUM"," "]
[null,null,null,null,null,null,null,null,null,null,null,null,null,null,null,null,null,null,null,null,null,null,null,null,null,null,null,null,null,null,null,null,null,null,null,null,"COOKIE BOXES","CS",null,null,null,null,null,null,null,null,null,null,null,null,null,null,null,null,null,null,null,17,"BREMERHAVEN - GERMANY","M/V  (Vessel Name) C/O Paulsen & Ivers   ","Alte Schleuse 13 - 15","21107 Hamburg, Germany","Reimer Philips-Horst / \nRoberto Menzel","49-0-40-73-44-6254 / \n49-0-40-73-44-6255","r.horst@paulsen-ivers.de",null,null,"158-CEL INFINITY"]
[null,null,null,null,null,null,null,null,null,null,null,null,null,null,null,null,null,null,null,null,null,null,null,null,null,null,null,null,null,null,null,null,null,null,null,null,"COSMETICS","UN",null,null,null,null,null,null,null,null,null,null,null,null,null,null,null,null,null,null,null,18,"BREST - FRANCE","M/V  (Vessel Name) Ship Stores in Transit C/O Union Armoricaina de Transports  O/B LANTIMAR","40, rue Victor Fenox ","29200 Brest, Freance ","Paula Aviles / \nAlicia Diaz / \nLauren Kerebel / \nValerie Houguet /  ","34971700950 / \n330761791388 / \n 330298802436 / ","starboard@lantimar.com; rccl.brest@aut.fr; v.houguet@sogebras.fr; ",null,null,"159-CEL SUMMIT"," "]
[null,null,null,null,null,null,null,null,null,null,null,null,null,null,null,null,null,null,null,null,null,null,null,null,null,null,null,null,null,null,null,null,null,null,null,null,"COSTUME JEWELRY","UN",null,null,null,null,null,null,null,null,null,null,null,null,null,null,null,null,null,null,null,19,"BRIDGETOWN - BARBADOS","M/V  (Vessel Name) C/O Goddards Shipping Barbados Ltd. ","Goddards Complex, Fontabelle\nSt. Michael,","Bridgetown, Barbados BB11149","Michael Thornhill","(246) 426-9918","Gst.Agents@thegelgroup.com; samantha.cain-toppin@thegelgroup.com",null,null,"185-HAL OOSTERDAM"]
[null,null,null,null,null,null,null,null,null,null,null,null,null,null,null,null,null,null,null,null,null,null,null,null,null,null,null,null,null,null,null,null,null,null,null,null,"DISPLAYS","UN",null,null,null,null,null,null,null,null,null,null,null,null,null,null,null,null,null,null,null,20,"BRISBANE - AUSTRALIA","M/V  (Vessel Name) C/O Geodis Australia","20 Westringia Road, Brisbane Airport QLD 4008/ Australia - 4013",null,"Stephanie Bennet (Marine Logstics Operations)","617 3260 2044","stephanie.bennett@geodis.com; warehousebne.ff.au@geodis.com; nick.nocevski@geodis.com",null,null,"186-HAL WESTERDAM"]
[null,null,null,null,null,null,null,null,null,null,null,null,null,null,null,null,null,null,null,null,null,null,null,null,null,null,null,null,null,null,null,null,null,null,null,null,"DVD'S","UN",null,null,null,null,null,null,null,null,null,null,null,null,null,null,null,null,null,null,null,21,"BRUNSBUTTEL - GERMANY","M/V  (Vessel Name) C/O Paulsen & Ivers   ","Alte Schleuse 13 - 15","21107 Hamburg, Germany","Reimer Philips-Horst / \nRoberto Menzel","49-0-40-73-44-6254 / \n49-0-40-73-44-6255","r.horst@paulsen-ivers.de",null,null,"187-HAL NOORDAM"]
[null,null,null,null,null,null,null,null,null,null,null,null,null,null,null,null,null,null,null,null,null,null,null,null,null,null,null,null,null,null,null,null,null,null,null,null,"ELECTRONICS","UN",null,null,null,null,null,null,null,null,null,null,null,null,null,null,null,null,null,null,null,22,"BUSAN - KOREA","M/V  (Vessel Name) C/O Eurasia Marine Services Co., Ltd","11, 346 Beon-gil, Samsan-ro, ","Nam-Ku, Ulsan, Korea 680-815","S.J. Shin / \nLucy","82-52-261-9955","eurasia@eurasiama.com ",null,null,"188-HAL EURODAM"]
[null,null,null,null,null,null,null,null,null,null,null,null,null,null,null,null,null,null,null,null,null,null,null,null,null,null,null,null,null,null,null,null,null,null,null,null,"FLYERS","UN",null,null,null,null,null,null,null,null,null,null,null,null,null,null,null,null,null,null,null,23,"CADIZ - SPAIN","M/V  (Vessel Name) Lantimar Aduanas  y Tránsitos SL\nc/o Maritima Bahia de Cadiz,SL","Muelle de Levante, Almacén Num.10                                     ","11006, Cádiz - SPAIN ","Paula Aviles / \nAlicia Diaz / \nFernando Benitez / ","34 649989974 / \n34 629401166 / \n34 650 413 561  / ","starboard@lantimar.com; logistics.cadiz@lantimar.com; fbenitez@lantimar.com; ",null,null,"189-HAL NIEUW AMSTERDAM"]
[null,null,null,null,null,null,null,null,null,null,null,null,null,null,null,null,null,null,null,null,null,null,null,null,null,null,null,null,null,null,null,null,null,null,null,null,"FOOD","CS",null,null,null,null,null,null,null,null,null,null,null,null,null,null,null,null,null,null,null,24,"CAIRNS  - AUSTRALIA","M/V  (Vessel Name) C/O TACS International \nSpecial Notes/Notify Party Geodis Australia","19 Industrial Ave,","Cairns, 4870, Australia","Kevin , Cruiseprealerts , Nick Nocevski ","07 40581590","kevin@tacsint.com.au;  cruiseprealerts.ff.au@geodis.com; nick.nocevski@geodis.com \n",null,null,"190-HAL KONINGSDAM"]
[null,null,null,null,null,null,null,null,null,null,null,null,null,null,null,null,null,null,null,null,null,null,null,null,null,null,null,null,null,null,null,null,null,null,null,null,"FORMS","UN",null,null,null,null,null,null,null,null,null,null,null,null,null,null,null,null,null,null,null,25,"CAPE TOWN - SOUTH AFRICA","Master and Owners \"Vessel Name\" C/O Wilhelmsen Ship Service South Africa Pty Ltd. ","Unit 1, Platinum Park, Phase 3, Platinum Crescent. Marconi Beam, Montague Gardens ","ZA-7441, Cape Town, South Africa","Ramnarain / \nTaniya / \nTameeka Fisher / \nSulshine Hepple   ","27-21-527-9360"," Taniya.Ramnarain@wilhelmsen.com; Sulshine.Hepple@wilhelmsen.com; \nwss.capetown@wilhelmsen.com; Tameeka.Fisher@wilhelmsen.com;",null,null,"191-HAL NIEUW STATENDAM"]
[null,null,null,null,null,null,null,null,null,null,null,null,null,null,null,null,null,null,null,null,null,null,null,null,null,null,null,null,null,null,null,null,null,null,null,null,"FRAMES","UN",null,null,null,null,null,null,null,null,null,null,null,null,null,null,null,null,null,null,null,26,"CHEJU  - KOREA","M/V  (Vessel Name) C/O Eurasia Marine Services Co., Ltd","11, 346 Beon-gil, Samsan-ro, ","Nam-Ku, Ulsan, Korea 680-815","S.J. Shin / \nLucy","82-52-261-9955","eurasia@eurasiama.com ",null,null,"192-HAL ROTTERDAM"]
[null,null,null,null,null,null,null,null,null,null,null,null,null,null,null,null,null,null,null,null,null,null,null,null,null,null,null,null,null,null,null,null,null,null,null,null,"GLASS","UN",null,null,null,null,null,null,null,null,null,null,null,null,null,null,null,null,null,null,null,27,"CIVITAVECCHIA - ITALY","M/V  (Vessel Name) C/O PRIANO  MARCHELLI  & C.SRL","VIA DEGLI ARTIGINAI N.58/A\n BOLZANETO, ","16162 GENOA, ITALY ","Andrea Giachero","011-39-010-23581","d.calabretta@prianomarchelli.it; onboardservices@prianomarchelli.it ",null,null,"200-RCL COCOCAY"]
[null,null,null,null,null,null,null,null,null,null,null,null,null,null,null,null,null,null,null,null,null,null,null,null,null,null,null,null,null,null,null,null,null,null,null,null,"HANDBAGS","UN",null,null,null,null,null,null,null,null,null,null,null,null,null,null,null,null,null,null,null,28,"COLOMBO - SRI LANKA","The Master - (Vessel Name)  Ships Stores in Transit \nC/O PENGUIN SHIPPING ENTERPRISES (PVT) LTD – Lantimar ","NO 48/1 WARD PLACE,","COLOMBO 7, SRI LANKA","Paula Aviles / \nAlicia Diaz / \nSUJITH DUNUWEERA","34 649989974 /                     34 629401166 /                  +94775164391         ","starboard@lantimar.com; india@msposeidon.com ",null,null,"210-RCL EMPRESS OTS"]
[null,null,null,null,null,null,null,null,null,null,null,null,null,null,null,null,null,null,null,null,null,null,null,null,null,null,null,null,null,null,null,null,null,null,null,null,"HATS","UN",null,null,null,null,null,null,null,null,null,null,null,null,null,null,null,null,null,null,null,29,"COPENHAGEN - DENMARK","M/V  (Vessel Name) C/O Blue Water Shipping A/S ","Venstrupparken 8 B 2670 Greve,                                ","Copenhagen Denmark                        ","Jonas Anderson ","45-7913-5081","Starboard_dk@bws.dk",null,null,"214-RCL MAJESTY OTS"]
[null,null,null,null,null,null,null,null,null,null,null,null,null,null,null,null,null,null,null,null,null,null,null,null,null,null,null,null,null,null,null,null,null,null,null,null,"JEWELRY","UN",null,null,null,null,null,null,null,null,null,null,null,null,null,null,null,null,null,null,null,30,"CRETE - GREECE","M/V  (Vessel Name) C/O Trias Ltd – Wilhelmsen Port Services","Akti Xaveriou 28, \nPort Gate E11 ","185 38 Piraeus, Greece ","MARY VARRA /\nJOHN EFSTATHIOU ","30 211 199 6073 / \n30 21 1199 6071","mary.varra@wilhelmsen.com; \njohn.efstathiou@wilhelmsen.com; \nwps.greece.cruiseagency@wilhelmsen.com",null,null,"217-RCL GRANDEUR OTS"]
[null,null,null,null,null,null,null,null,null,null,null,null,null,null,null,null,null,null,null,null,null,null,null,null,null,null,null,null,null,null,null,null,null,null,null,null,"KEYCHAINS","UN",null,null,null,null,null,null,null,null,null,null,null,null,null,null,null,null,null,null,null,31,"CUXHAVEN - GERMANY","M/V  (Vessel Name) C/O Paulsen & Ivers   ","Alte Schleuse 13 - 15","21107 Hamburg, Germany","Reimer Philips-Horst / \nRoberto Menzel","49-0-40-73-44-6254 / \n49-0-40-73-44-6255","r.horst@paulsen-ivers.de",null,null,"218-RCL RHAPSODY OTS"]
[null,null,null,null,null,null,null,null,null,null,null,null,null,null,null,null,null,null,null,null,null,null,null,null,null,null,null,null,null,null,null,null,null,null,null,null,"LABELS","UN",null,null,null,null,null,null,null,null,null,null,null,null,null,null,null,null,null,null,null,32,"DA NANF-G - VIETNAM","M/V (Name Vessel) C/O Poseidon Logistics Company Ltd","Phuoc Tan Hamlet, Tan Hoa Commune, \nPhu My Town, ","Ba Ria - Vung Tau, Vietnam"," Paula Aviles / \nAlicia Diaz / \nMs. Camelia Thai ","34 649989974 / \n34 629401166 / \n84 972275484","starboard@lantimar.com; Logistics@MSposeidon.com",null,null,"219-RCL ENCHNTMNT OTS"]
[null,null,null,null,null,null,null,null,null,null,null,null,null,null,null,null,null,null,null,null,null,null,null,null,null,null,null,null,null,null,null,null,null,null,null,null,"LEATHER GOODS","UN",null,null,null,null,null,null,null,null,null,null,null,null,null,null,null,null,null,null,null,33,"DARWIN - AUSTRALIA","M/V  (Vessel Name) C/O Geodis Australia","20 Westringia Road, Brisbane Airport QLD 4008/ Australia - 4013",null,"Stephanie Bennet (Marine Logstics Operations)","617 3260 2044","stephanie.bennett@geodis.com; warehousebne.ff.au@geodis.com; nick.nocevski@geodis.com",null,null,"220-RCL VISION OTS"]
[null,null,null,null,null,null,null,null,null,null,null,null,null,null,null,null,null,null,null,null,null,null,null,null,null,null,null,null,null,null,null,null,null,null,null,null,"LIGHTERS","UN",null,null,null,null,null,null,null,null,null,null,null,null,null,null,null,null,null,null,null,34,"DOVER - U.K","M/V  (Vessel Name) C/O Southampton Freight Services Ltd","Units F & G, Griffin Industrial Park, Totton, ","Southampton, Hampshire, SO40 3SH, GB\nUnited Kingdom","Russell Cox / \nJohn Smith ","011-44-2380-860999","cruise@sotonfreight.co.uk; Russell@sotonfreight.co.uk; john@sotonfreight.co.uk",null,null,"221-RCL VOYAGER OTS"]
[null,null,null,null,null,null,null,null,null,null,null,null,null,null,null,null,null,null,null,null,null,null,null,null,null,null,null,null,null,null,null,null,null,null,null,null,"LUGGAGE","UN",null,null,null,null,null,null,null,null,null,null,null,null,null,null,null,null,null,null,null,35,"DUBAI - UNITED ARAB EMIRATES ","Master M/V (VESSEL NAME) C/O BLUE WATER SHIPPING MIDDLE EAST LLC ","P.B.NO: 418198, OFC # 2804, AL MOOSA TOWER 2 BLDG","SHEIKH ZAYED ROAD, DUBAI – UAE","Mr. Manoj / \nMr. Jayesh","971-4-2146266 / \n04-323-6696 ","Cruise_UAE@bws.dk",null,null,"222-RCL EXPLORER OTS"]
[null,null,null,null,null,null,null,null,null,null,null,null,null,null,null,null,null,null,null,null,null,null,null,null,null,null,null,null,null,null,null,null,null,null,null,null,"MAGAZINES","UN",null,null,null,null,null,null,null,null,null,null,null,null,null,null,null,null,null,null,null,36,"DUBLIN - IRELAND","M/V  (Vessel Name) C/O Blue Water Shipping A/S  C/O Norse Logistics","UNIT 9A NORTHWEST BUSINESS PARK BALLYCOOLIN ","DUBLIN 15,  IRELAND","Rhona Linehan (GM) | ANA BYRNE or CHERYL MCMAHON",35318941270," Dublin@bws.dk; RHLI@bws.dk ",null,null,"223-RCL RADIANCE OTS"]
[null,null,null,null,null,null,null,null,null,null,null,null,null,null,null,null,null,null,null,null,null,null,null,null,null,null,null,null,null,null,null,null,null,null,null,null,"NUTS","CS",null,null,null,null,null,null,null,null,null,null,null,null,null,null,null,null,null,null,null,37,"DURBAN - SOUTH AFRICA","Master of M/V  (Vessel Name) C/O Wilhelmsen Ships Service ","30 Kobe Road Bayhead ","Durban 4014 South Africa","Taniya Ramnarain, \nSulshine Hepple,  ","27-31-812-5486 / \n27-21-527-9360","wss.capetown@wilhelmsen.com; \nTaniya.Ramnarain@wilhelmsen.com; Sulshine.Hepple@wilhelmsen.com; ",null,null,"224-RCL ADVENTURE OTS"]
[null,null,null,null,null,null,null,null,null,null,null,null,null,null,null,null,null,null,null,null,null,null,null,null,null,null,null,null,null,null,null,null,null,null,null,null,"PAPER ROLLS","UN",null,null,null,null,null,null,null,null,null,null,null,null,null,null,null,null,null,null,null,38,"EEMSHAVEN - NETHERLANDS","M/V  (Vessel Name) C/O SSL Ship Spares Logistics BV","Bunschotenweg 115 Port number 2678  ","3089 KB Rotterdam  The Netherlands","Lars van Grevenbroek ","31 (0)10-294-1224 ","lars.grevenbroek@burando.eu; laura.verheij@burando.eu; jelle@burando.eu ",null,null,"225-RCL BRILLIANCE OTS"]
[null,null,null,null,null,null,null,null,null,null,null,null,null,null,null,null,null,null,null,null,null,null,null,null,null,null,null,null,null,null,null,null,null,null,null,null,"PASTA","CS",null,null,null,null,null,null,null,null,null,null,null,null,null,null,null,null,null,null,null,39,"FREEPORT - BAHAMAS","M/V  (Vessel Name) C/O Freeport Ship Services","19A Peel Street P.O. Box F40423                                                   ","Freeport, Bahamas ","Theresa Cash","242-602-5000","Theresa@freeportshipservices.com; Logistics@freeportshipservices.com; \nops@freeportshipservices.com; Chaz@freeportshipservices.com",null,null,"226-RCL NAVIGATOR OTS"]
[null,null,null,null,null,null,null,null,null,null,null,null,null,null,null,null,null,null,null,null,null,null,null,null,null,null,null,null,null,null,null,null,null,null,null,null,"PENS","UN",null,null,null,null,null,null,null,null,null,null,null,null,null,null,null,null,null,null,null,40,"FUKUOKA - JAPAN","MASTER OF M/V (Vessel Name) C/O UCI JP - Lantimar C/O Geneq Corp","2-85-8 Higashihama, Higashi-Ku","Fukuoka 812-0055, Japan","Paula Aviles / \nAlicia Diaz / \nMr Nakaya ","34 649989974 / \n34 629401166 / \n81-6-6265-0051                       ","starboard@lantimar.com; logistics.japan@lantimar.com",null,null,"227-RCL SERENADE OTS"]
[null,null,null,null,null,null,null,null,null,null,null,null,null,null,null,null,null,null,null,null,null,null,null,null,null,null,null,null,null,null,null,null,null,null,null,null,"PERFUME","UN",null,null,null,null,null,null,null,null,null,null,null,null,null,null,null,null,null,null,null,41,"GALVESTON - US","M/V (VESSEL NAME) C/O Fast Freight Services Of Texas Inc. c/o VSI, INC","1428 N Sam Houston pkwy East S-190","Houston, Tx 77032","Vivian Suarez / \nJohn Sendrey","305-418-9200 / \n 281-449-6994","fastfreight@fastfreightservices.com; vsimia@vsimportservices.com",null,null,"228-RCL MARINER OTS"]
[null,null,null,null,null,null,null,null,null,null,null,null,null,null,null,null,null,null,null,null,null,null,null,null,null,null,null,null,null,null,null,null,null,null,null,null,"SALMON","CS",null,null,null,null,null,null,null,null,null,null,null,null,null,null,null,null,null,null,null,42,"GENOA - ITALY","M/V  (Vessel Name) C/O PRIANO  MARCHELLI  & C.SRL","VIA DEGLI ARTIGINAI N.58/A\n BOLZANETO, ","16162 GENOA, ITALY ","Andrea Giachero","011-39-010-23581","d.calabretta@prianomarchelli.it; onboardservices@prianomarchelli.it ",null,null,"229-RCL JEWEL OTS"]
[null,null,null,null,null,null,null,null,null,null,null,null,null,null,null,null,null,null,null,null,null,null,null,null,null,null,null,null,null,null,null,null,null,null,null,null,"SCARVES","UN",null,null,null,null,null,null,null,null,null,null,null,null,null,null,null,null,null,null,null,43,"HAMBURG - GERMANY","M/V  (Vessel Name) C/O Paulsen & Ivers   ","Alte Schleuse 13 - 15","21107 Hamburg, Germany","Reimer Philips-Horst / \nRoberto Menzel","49-0-40-73-44-6254 / \n49-0-40-73-44-6255","r.horst@paulsen-ivers.de",null,null,"230-RCL FREEDOM OTS"]
[null,null,null,null,null,null,null,null,null,null,null,null,null,null,null,null,null,null,null,null,null,null,null,null,null,null,null,null,null,null,null,null,null,null,null,null,"SHOES","UN",null,null,null,null,null,null,null,null,null,null,null,null,null,null,null,null,null,null,null,44,"HARWICH - U.K","M/V  (Vessel Name) C/O Southampton Freight Services Ltd","Units F & G, Griffin Industrial Park, Totton, ","Southampton, Hampshire, SO40 3SH, GB\nUnited Kingdom","Russell Cox / \nJohn Smith ","011-44-2380-860999","cruise@sotonfreight.co.uk; Russell@sotonfreight.co.uk; john@sotonfreight.co.uk",null,null,"231-RCL LIBERTY OTS"]
[null,null,null,null,null,null,null,null,null,null,null,null,null,null,null,null,null,null,null,null,null,null,null,null,null,null,null,null,null,null,null,null,null,null,null,null,"SOUVENIRS","UN",null,null,null,null,null,null,null,null,null,null,null,null,null,null,null,null,null,null,null,45,"HAUGESUND - NORWAY","M/V  (Vessel Name) C/O Blue Water Shipping A/S","LUHRTOPPEN 2, 4TH FLOOR","LOERENSKOG 1470, NORWAY","Ann Kristin Elfgen","47-2102-0835","air_osl_imp@bws.dk; anke@bws.dk; Cruise_scandinavia@bws.dk",null,null,"232-RCL OASIS OTS"]
[null,null,null,null,null,null,null,null,null,null,null,null,null,null,null,null,null,null,null,null,null,null,null,null,null,null,null,null,null,null,null,null,null,null,null,null,null,null,null,null,null,null,null,null,null,null,null,null,null,null,null,null,null,null,null,null,null,46,"HELSINKI - FINLAND","M/V  (Vessel Name) BEWESHIP FORWARDING O/B LANTIMAR","Nuolikuja 8, Fl-01740 \nVantaa,","Helsinki, Finland ","Paula Aviles / \nAlicia Diaz / \nPasi Hakkinen / ","34 649989974 / \n34 629401166 / \n358-20-7857-500 / \n358-20-7857-443 / ","starboard@lantimar.com; lantimar@beweship.com; pasi.hakkinen@beweship.com; ",null,null,"233-RCL ALLURE OTS"]
[null,null,null,null,null,null,null,null,null,null,null,null,null,null,null,null,null,null,null,null,null,null,null,null,null,null,null,null,null,null,null,null,null,null,null,null,"SPORTING GOODS","UN",null,null,null,null,null,null,null,null,null,null,null,null,null,null,null,null,null,null,null,47,"HALIFAX - CANADA","M/V “Vessel Name” SHIP STORE IN TRANSIT \nC/O AEROSTREAM C/O  F.K. Warren Ltd.","1215 Marginal Rd, ","Halifax, NS B3H 4P8","Kiran Kumar \nVicent Mani","(604) 207-8888 ext 142 / \n514-931-0306 ext 210 ","kkumar@aerostreamlogistics.com; vmani@aerostreamlogistics.com",null,null,"234-RCL QUANTUM OTS"]
[null,null,null,null,null,null,null,null,null,null,null,null,null,null,null,null,null,null,null,null,null,null,null,null,null,null,null,null,null,null,null,null,null,null,null,null,"SUNGLASSES","UN",null,null,null,null,null,null,null,null,null,null,null,null,null,null,null,null,null,null,null,48,"HOBART- TASMANIA- AUSTRALIA ","M/V  (Vessel Name) C/O Geodis Australia","37-41 South Centre Road\nMelbourne Airport, ","3045, Victoria\nAustralia","Kristy Sani (Marine Logistics Operations), Nathan Hope (Marine Logistics Operations), Hilda Gorail, Domenic Nesci","+61 (2) 9305 0317","nick.nocevski@geodis.com; cruisemel.ff.au@geodis.com; Cruiseprealerts.ff.au@geodis.com ",null,null,"235-RCL ANTHEM OTS"]
[null,null,null,null,null,null,null,null,null,null,null,null,null,null,null,null,null,null,null,null,null,null,null,null,null,null,null,null,null,null,null,null,null,null,null,null,"TEA","CS",null,null,null,null,null,null,null,null,null,null,null,null,null,null,null,null,null,null,null,49,"HO-CHI-MIN - VIETNAM","M/V (Name Vessel) C/O Poseidon Logistics Company Ltd","Phuoc Tan Hamlet, Tan Hoa Commune, \nPhu My Town, ","Ba Ria - Vung Tau, Vietnam"," Paula Aviles / \nAlicia Diaz / \nMs. Camelia Thai ","34 649989974 / \n34 629401166 / \n84 972275484","starboard@lantimar.com; Logistics@MSposeidon.com",null,null,"236-RCL OVATION OTS"]
[null,null,null,null,null,null,null,null,null,null,null,null,null,null,null,null,null,null,null,null,null,null,null,null,null,null,null,null,null,null,null,null,null,null,null,null,"TESTERS","UN",null,null,null,null,null,null,null,null,null,null,null,null,null,null,null,null,null,null,null,50,"HONG KONG - CHINA ","M/V (Name Vessel) - SHIP STORES IN TRANSIT C/O Air-City Company Ltd -LANTIMAR","7022-7023W, 7/F, ATL Logistics Centre A, \nBerth 3, Container Port Road, Kwai Chung ","N.T, Hong Kong ","Paula Aviles / \nAlicia Diaz / \nJustin Lee / ","34 649989974 / \n34 629401166 / \n(852) 98103102 /                         ","starboard@lantimar.com; logistics.hkg@lantimar.com  ",null,null,"237-RCL HARMONY OTS"]
[null,null,null,null,null,null,null,null,null,null,null,null,null,null,null,null,null,null,null,null,null,null,null,null,null,null,null,null,null,null,null,null,null,null,null,null,"TEXTILE","UN",null,null,null,null,null,null,null,null,null,null,null,null,null,null,null,null,null,null,null,51,"HONOLULU - US","M/V (VESSEL NAME)   C/O FIVE STAR LOGISTICS ","1930 Auiki St                                                                ","Honolulu, Hawaii","Vivian Suarez","305-418-9200","vivian@vsimportservices.com ",null,null,"238-RCL SYMPHONY OTS"]
[null,null,null,null,null,null,null,null,null,null,null,null,null,null,null,null,null,null,null,null,null,null,null,null,null,null,null,null,null,null,null,null,null,null,null,null,"TIES","UN",null,null,null,null,null,null,null,null,null,null,null,null,null,null,null,null,null,null,null,52,"IJMUIDEN - NETHERLANDS","M/V  (Vessel Name) C/O SSL Ship Spares Logistics BV","Bunschotenweg 115 Port number 2678  ","3089 KB Rotterdam  The Netherlands","Lars van Grevenbroek ","31 (0)10-294-1224 ","lars.grevenbroek@burando.eu; laura.verheij@burando.eu; jelle@burando.eu ",null,null,"239-RCL SPECTRUM OTS"]
[null,null,null,null,null,null,null,null,null,null,null,null,null,null,null,null,null,null,null,null,null,null,null,null,null,null,null,null,null,null,null,null,null,null,null,null,"TOBACCO","CS",null,null,null,null,null,null,null,null,null,null,null,null,null,null,null,null,null,null,null,53,"INCHON  - KOREA","M/V  (Vessel Name) C/O Eurasia Marine Services Co., Ltd","11, 346 Beon-gil, Samsan-ro, ","Nam-Ku, Ulsan, Korea 680-815","S.J. Shin / \nLucy","82-52-261-9955","eurasia@eurasiama.com ",null,null,"240-CEL CONSTELLATION"]
[null,null,null,null,null,null,null,null,null,null,null,null,null,null,null,null,null,null,null,null,null,null,null,null,null,null,null,null,null,null,null,null,null,null,null,null,"TOILET PREPS","UN",null,null,null,null,null,null,null,null,null,null,null,null,null,null,null,null,null,null,null,54,"ISTANBUL - TURKEY","M/V  (Vessel Name) & (Port of call) C/O Ziya Goksel Shipping Agency Ltd. – as Lantimar agent\n","Ataköy 2-5-6.Kısım 19 Mayıs Cad. E2-1D Blok - No:12/3 D:63 ","Bakırköy - Istanbul","Paula Aviles / \nCengiz Goksel ","34-9707-00950 /\n90 212 2442600","starboard@lantimar.com;  info@ziyagoksel.com",null,null,"251-DCL GENTING DREAM"]
[null,null,null,null,null,null,null,null,null,null,null,null,null,null,null,null,null,null,null,null,null,null,null,null,null,null,null,null,null,null,null,null,null,null,null,null,"TOWELS","UN",null,null,null,null,null,null,null,null,null,null,null,null,null,null,null,null,null,null,null,55,"IZMIR - TURKEY","M/V  (Vessel Name) C/O KARAVANMAR AS","HALASKARGAZI CAD.112, 34371 SISLI ","INSTAMBUL TURKEY","MR. ANGELO DELLA VALLE","90 533 5789540","camilla4@superonline.com",null,null,"252-DCL WORLD DREAM"]
[null,null,null,null,null,null,null,null,null,null,null,null,null,null,null,null,null,null,null,null,null,null,null,null,null,null,null,null,null,null,null,null,null,null,null,null,"TOYS","UN",null,null,null,null,null,null,null,null,null,null,null,null,null,null,null,null,null,null,null,56,"KAGOSHIMA - JAPAN","MASTER OF M/V (Vessel Name) C/O UCI JP - Lantimar C/O Geneq Corp","2-85-8 Higashihama, Higashi-Ku","Fukuoka 812-0055, Japan","Paula Aviles / \nAlicia Diaz / \nMr Nakaya ","34 649989974 / \n34 629401166 / \n81-6-6265-0051                       ","starboard@lantimar.com; logistics.japan@lantimar.com",null,null,"253-DCL EXPLORER DREAM"]
[null,null,null,null,null,null,null,null,null,null,null,null,null,null,null,null,null,null,null,null,null,null,null,null,null,null,null,null,null,null,null,null,null,null,null,null,"VISUAL MERCHANDISE","UN",null,null,null,null,null,null,null,null,null,null,null,null,null,null,null,null,null,null,null,57,"KANGERLUSSUAQ  - GREENLAND","M/V  (Vessel Name) Mittarfeqarfiit C/O Blue Water Greenland",3910,"Kangerlussuaq Greenland","Lars S. Vajse / \nBart Fleischer","299 348220","Agency_nuuk@bws.dk; air_goh@bws.dk; sea_nuuk@bws.dk; ",null,null,"254-DCL GLOBAL CLASS 1"]
[null,null,null,null,null,null,null,null,null,null,null,null,null,null,null,null,null,null,null,null,null,null,null,null,null,null,null,null,null,null,null,null,null,null,null,null,"WATCHES","UN",null,null,null,null,null,null,null,null,null,null,null,null,null,null,null,null,null,null,null,58,"KEELUNG - TAIWAN","M/V  (Vessel Name) C/O CTSI LOGISTICS (TAIWAN) INC ","11F - 4 No. 206, Songliang Road,                                              ","Taipei, Taiwan. # 10467","JOHNNY YEH / \nCATLIN WEI ","886-2-2531-9761","catlin_wei@ctsitwn.com.tw; johnny_yeh@ctsitwn.com.tw; starboard@lantimar.com",null,null,"271-COS MEDITERRANEA"]
[null,null,null,null,null,null,null,null,null,null,null,null,null,null,null,null,null,null,null,null,null,null,null,null,null,null,null,null,null,null,null,null,null,null,null,null,null,null,null,null,null,null,null,null,null,null,null,null,null,null,null,null,null,null,null,null,null,59,"KIEL - GERMANY","M/V  (Vessel Name) C/O Paulsen & Ivers   ","Alte Schleuse 13 - 15","21107 Hamburg, Germany","Reimer Philips-Horst / \nRoberto Menzel","49-0-40-73-44-6254 / \n49-0-40-73-44-6255","r.horst@paulsen-ivers.de",null,null,"272-COS FORTUNA"]
[null,null,null,null,null,null,null,null,null,null,null,null,null,null,null,null,null,null,null,null,null,null,null,null,null,null,null,null,null,null,null,null,null,null,null,null,null,null,null,null,null,null,null,null,null,null,null,null,null,null,null,null,null,null,null,null,null,60,"KOBE - JAPAN","MASTER OF M/V (Vessel Name) C/O UCI JP - Lantimar ","No. 3 Cargo Agent Bldg 2FL,","Kansai Airport 549-0021 Japan","Paula Aviles / \nAlicia Diaz / \nMr Nakaya ","34 649989974 / \n34 629401166 / \n81-6-6265-0051                       ","starboard@lantimar.com; logistics.japan@lantimar.com",null,null,"273-COS MAGICA"]
[null,null,null,null,null,null,null,null,null,null,null,null,null,null,null,null,null,null,null,null,null,null,null,null,null,null,null,null,null,null,null,null,null,null,null,null,null,null,null,null,null,null,null,null,null,null,null,null,null,null,null,null,null,null,null,null,null,61,"KOCHI  - JAPAN","MASTER OF M/V (Vessel Name) C/O UCI JP - Lantimar ","No. 3 Cargo Agent Bldg 2FL,","Kansai Airport 549-0021 Japan","Paula Aviles / \nAlicia Diaz / \nMr Nakaya ","34 649989974 / \n34 629401166 / \n81-6-6265-0051                       ","starboard@lantimar.com; logistics.japan@lantimar.com",null,null,"275-COS SERENA"]
[null,null,null,null,null,null,null,null,null,null,null,null,null,null,null,null,null,null,null,null,null,null,null,null,null,null,null,null,null,null,null,null,null,null,null,null,null,null,null,null,null,null,null,null,null,null,null,null,null,null,null,null,null,null,null,null,null,62,"LA ROCHELLE - FRANCE","M/V  (Vessel Name) Ship Stores in Transit C/O TEMIS LUXURY","31-53 Rue Blaise Pascal ","93600 Aulnay-sous-Bois, FR","Pierre Emery \nVivian Suarez","33-1-48-19-83-44 \n41-22-761-59-66 \n305-418-9200 ","pierre.emery@verongrauer.com; vivian@vsimportservices.com; vsimia@vsimportservices.com",null,null,"276-COS LUMINOSA"]
[null,null,null,null,null,null,null,null,null,null,null,null,null,null,null,null,null,null,null,null,null,null,null,null,null,null,null,null,null,null,null,null,null,null,null,null,null,null,null,null,null,null,null,null,null,null,null,null,null,null,null,null,null,null,null,null,null,63,"LA ROMANA - DOMINICA REPUBLIC","M/V  (Vessel Name) C/O Agencia Maritima Oriental","Muelle Turistico de La Romana, Buena Vista Sur\nRNC: 1-1210342-2\n","La Romana, Dominican Republic","Cesar Garcia","809-541-1034 ","cgarcia@maritimaoriental.com",null,null,"277-COS PACIFICA"]
[null,null,null,null,null,null,null,null,null,null,null,null,null,null,null,null,null,null,null,null,null,null,null,null,null,null,null,null,null,null,null,null,null,null,null,null,null,null,null,null,null,null,null,null,null,null,null,null,null,null,null,null,null,null,null,null,null,64,"LA SPEZIA - ITALY","M/V  (Vessel Name) C/O PRIANO  MARCHELLI  & C.SRL","VIA DEGLI ARTIGINAI N.58/A\n BOLZANETO, ","16162 GENOA, ITALY ","Andrea Giachero","011-39-010-23581","d.calabretta@prianomarchelli.it; onboardservices@prianomarchelli.it ",null,null,"278-COS DELIZIOSA"]
[null,null,null,null,null,null,null,null,null,null,null,null,null,null,null,null,null,null,null,null,null,null,null,null,null,null,null,null,null,null,null,null,null,null,null,null,null,null,null,null,null,null,null,null,null,null,null,null,null,null,null,null,null,null,null,null,null,65,"LAS PALMAS DE GRAN CANARIA - SPAIN","MV “Vessel name” C/O AGR International Logistic Services S.L. O/B Lantimar\n ","C/. Pepita Serrador, 8-10","38005 Santa Cruz de Tenerife, Spain"," Paula Aviles / \nAlicia Diaz / ","34-64-998-9974 / \n34-62-940-1166 /  ","starboard@lantimar.com",null,null,"279-COS FAVOLOSA"]
[null,null,null,null,null,null,null,null,null,null,null,null,null,null,null,null,null,null,null,null,null,null,null,null,null,null,null,null,null,null,null,null,null,null,null,null,null,null,null,null,null,null,null,null,null,null,null,null,null,null,null,null,null,null,null,null,null,66,"LAS VEGAS - US","STARBOARD C/O FEDEX","Westgate Las Vegas Resorts & Casino \n3000 Paradise Road \nBALLROOM LOADING DOCK","Las Vegas, NV 89109","Erica Velasquez – Senior Store Manager / \nJonathan Felix Store Assistant Manager","Office 702-862-4104 \nMobile 702-249-6323 ","erica.burnett@fedex.com \njonathan.felix@fedex.com",null,null,"280-COS FASCINOSA"]
[null,null,null,null,null,null,null,null,null,null,null,null,null,null,null,null,null,null,null,null,null,null,null,null,null,null,null,null,null,null,null,null,null,null,null,null,null,null,null,null,null,null,null,null,null,null,null,null,null,null,null,null,null,null,null,null,null,67,"LAUTOKA- VITI LEVU - FIJI","M/V  (Vessel Name) C/O Freight Services (Fiji) – As LANTIMAR Agents                                     ","24-26 Edinburgh Drives, Suva, ","Fiji Islands ","Paula Aviles / \nAlicia Diaz / \nJoe Taoi ","34-64-998-9974 / \n34-62-940-1166 / \n679-330-9603 / ","starboard@lantimar.com; lantimar@beweship.com; ",null,null,"282-COS DIADEMA"]
[null,null,null,null,null,null,null,null,null,null,null,null,null,null,null,null,null,null,null,null,null,null,null,null,null,null,null,null,null,null,null,null,null,null,null,null,null,null,null,null,null,null,null,null,null,null,null,null,null,null,null,null,null,null,null,null,null,68,"LE HAVRE - FRANCE","M/V  (Vessel Name) Ship Stores in Transit \nC/O Union Armoricaina de Transports  O/B LANTIMAR","156, rue Victor Fenox ","76066 Le Havre, France ","Paula Aviles / \nAlicia Diaz","34 649989974 / \n34 629401166 /               ","starboard@lantimar.com; seine@agenatramp.fr",null,null,"285-COS SMERALDA"]
[null,null,null,null,null,null,null,null,null,null,null,null,null,null,null,null,null,null,null,null,null,null,null,null,null,null,null,null,null,null,null,null,null,null,null,null,null,null,null,null,null,null,null,null,null,null,null,null,null,null,null,null,null,null,null,null,null,69,"LIMASSOL - CYPRUS","M/V  (Vessel Name) C/O Cypromar LTD","17, DOLICHIS STREET GEOTRANS BUILDING ","ZAKAKI-LIMASSOL-3046 CYPRUS","Georgios Yorkadjis","357-25574230","yorkadji@cypromar.com.cy",null,null,"286-COS VENEZIA"]
[null,null,null,null,null,null,null,null,null,null,null,null,null,null,null,null,null,null,null,null,null,null,null,null,null,null,null,null,null,null,null,null,null,null,null,null,null,null,null,null,null,null,null,null,null,null,null,null,null,null,null,null,null,null,null,null,null,70,"LIMASSOL - CYPRUS","M/V  (Vessel Name) C/O Gelasakis Shipping Agency  - O/B LANTIMAR","GAP Vassilopoulos & James Louisides Ltd\n109H  Franklin Roosevelt Ave. ","3011 Limassol, Cyprus ","Paula Aviles / \nAlicia Diaz / \nJames Louisides / ","34 649989974 / \n34 629401166 / \n357 99636801 / ","starboard@lantimar.com; cruise@g-shippingagency.gr",null,null,"287-COS FIRENZE"]
[null,null,null,null,null,null,null,null,null,null,null,null,null,null,null,null,null,null,null,null,null,null,null,null,null,null,null,null,null,null,null,null,null,null,null,null,null,null,null,null,null,null,null,null,null,null,null,null,null,null,null,null,null,null,null,null,null,71,"LISBON  - PORTUGAL ","M/V  (Vessel Name) C/O James Rawes Navegacao,Lda ","Avenida 24 de Julho, 126 – 1ºesq","1350 – 346  Lisboa - PORTUGAL","Francisco Fernandes","351-912-234-4078","operations@jamesrawes.pt",null,null,"288-COS TOSCANA"]
[null,null,null,null,null,null,null,null,null,null,null,null,null,null,null,null,null,null,null,null,null,null,null,null,null,null,null,null,null,null,null,null,null,null,null,null,null,null,null,null,null,null,null,null,null,null,null,null,null,null,null,null,null,null,null,null,null,72,"LIVORNO - ITALY","M/V  (Vessel Name) C/O PRIANO  MARCHELLI  & C.SRL","VIA DEGLI ARTIGINAI N.58/A\n BOLZANETO, ","16162 GENOA, ITALY ","Andrea Giachero","011-39-010-23581","d.calabretta@prianomarchelli.it; onboardservices@prianomarchelli.it ",null,null,"301-CCL PRIDE"]
[null,null,null,null,null,null,null,null,null,null,null,null,null,null,null,null,null,null,null,null,null,null,null,null,null,null,null,null,null,null,null,null,null,null,null,null,null,null,null,null,null,null,null,null,null,null,null,null,null,null,null,null,null,null,null,null,null,73,"LONDON - U.K","M/V  (Vessel Name) C/O Southampton Freight Services Ltd","Units F & G, Griffin Industrial Park, Totton, ","Southampton, Hampshire, SO40 3SH, GB\nUnited Kingdom","Russell Cox / \nJohn Smith ","011-44-2380-860999","cruise@sotonfreight.co.uk; Russell@sotonfreight.co.uk; john@sotonfreight.co.uk",null,null,"304-CCL LEGEND"]
[null,null,null,null,null,null,null,null,null,null,null,null,null,null,null,null,null,null,null,null,null,null,null,null,null,null,null,null,null,null,null,null,null,null,null,null,null,null,null,null,null,null,null,null,null,null,null,null,null,null,null,null,null,null,null,null,null,74,"LONG BEACH - US","M/V (VESSEL NAME)   C/O VSI LAX","273 E. Redondo Beach Blvd.","Gardena , CA 90248","Jaime Quintana / \nVivian Suarez ","310-515-6870 / \n 305-418-9200","vsilax@vsimportservices.com",null,null,"305-CCL MIRACLE"]
[null,null,null,null,null,null,null,null,null,null,null,null,null,null,null,null,null,null,null,null,null,null,null,null,null,null,null,null,null,null,null,null,null,null,null,null,null,null,null,null,null,null,null,null,null,null,null,null,null,null,null,null,null,null,null,null,null,75,"LOS ANGELES - US","M/V (VESSEL NAME)   C/O VSI LAX","273 E. Redondo Beach Blvd.","Gardena , CA 90248","Jaime Quintana / \nVivian Suarez ","310-515-6870 / \n 305-418-9200","vsilax@vsimportservices.com",null,null,"308-CCL FREEDOM"]
[null,null,null,null,null,null,null,null,null,null,null,null,null,null,null,null,null,null,null,null,null,null,null,null,null,null,null,null,null,null,null,null,null,null,null,null,null,null,null,null,null,null,null,null,null,null,null,null,null,null,null,null,null,null,null,null,null,76,"LUBECK - GERMANY","M/V  (Vessel Name) C/O Paulsen & Ivers   ","Alte Schleuse 13 - 15","21107 Hamburg, Germany","Reimer Philips-Horst / \nRoberto Menzel","49-0-40-73-44-6254 / \n49-0-40-73-44-6255","r.horst@paulsen-ivers.de",null,null,"310-CCL DREAM"]
[null,null,null,null,null,null,null,null,null,null,null,null,null,null,null,null,null,null,null,null,null,null,null,null,null,null,null,null,null,null,null,null,null,null,null,null,null,null,null,null,null,null,null,null,null,null,null,null,null,null,null,null,null,null,null,null,null,77,"MALAGA - SPAIN","CNEE:\nLANTIMAR ADUANAS Y TRANSITOS, SL\nC/O AGENCIA PEREZ MUÑOZ, SL\nAUTOVIA DE CAMPANILLAS – C/GLUCK, no. 1\n29001 MALAGA (Spain)\nph# +34 971700950 / Email:starboard@lantimar.com\n\nNFY\nLANTIMAR ADUANAS Y TRANSITOS, SL\nCTRA. PORTO PI, no. 8 – 6ºC\nEDIFICIO REINA CONSTANZA\n07015 PALMA DE MALLOCA (Spain)\nph# +34 971700950 / Email:starboard@lantimar.com","Estacion Maritima s/n 1a Planta                            ","29001 - Malaga, Spain ","Antonio Poveda","011-34-952-226-902","aduanas@lantimar.com; starboard@lantimar.com",null,null,"311-CCL MAGIC"]
[null,null,null,null,null,null,null,null,null,null,null,null,null,null,null,null,null,null,null,null,null,null,null,null,null,null,null,null,null,null,null,null,null,null,null,null,null,null,null,null,null,null,null,null,null,null,null,null,null,null,null,null,null,null,null,null,null,78,"MANILA - PHILIPPINES","Master of  \"Name of cruise ship\" at Port of Manila\nc/o Soriamont Steamship Agencies Inc.\n4F floor  141 Don Jacinto Bldg. Salcedo St. Legaspi Village\nMakati City, 1229 Kalakhang Maynila, Filipinas      ","       4F Don Jacinto Bldg. 141 Salcedo Street Legaspi Village Makati City,","1229 Kalakhang Maynila, Filipinas ","Paula Aviles / \nAlicia Diaz / \nWillie Pel / ","34 649989974 / \n34 629401166 / \n63-2-892-7931 / ","starboard@lantimar.com; jmp@soriamont.com.ph; pathway@soriamont.com.ph; ",null,null,"314-CCL HORIZON"]
[null,null,null,null,null,null,null,null,null,null,null,null,null,null,null,null,null,null,null,null,null,null,null,null,null,null,null,null,null,null,null,null,null,null,null,null,null,null,null,null,null,null,null,null,null,null,null,null,null,null,null,null,null,null,null,null,null,79,"MARINA DI CARRARA - ITALY","M/V  (Vessel Name) C/O PRIANO  MARCHELLI  & C.SRL","VIA DEGLI ARTIGINAI N.58/A\n BOLZANETO, ","16162 GENOA, ITALY ","Andrea Giachero","011-39-010-23581","d.calabretta@prianomarchelli.it; onboardservices@prianomarchelli.it ",null,null,"315-CCL CELEBRATION"]
[null,null,null,null,null,null,null,null,null,null,null,null,null,null,null,null,null,null,null,null,null,null,null,null,null,null,null,null,null,null,null,null,null,null,null,null,null,null,null,null,null,null,null,null,null,null,null,null,null,null,null,null,null,null,null,null,null,80,"MARSEILLE - FRANCE","M/V  (Vessel Name) Ship Stores in Transit C/O TEMIS LUXURY","31-53 Rue Blaise Pascal ","93600 Aulnay-sous-Bois, FR","Pierre Emery \nVivian Suarez","33-1-48-19-83-44 \n41-22-761-59-66 \n305-418-9200 ","pierre.emery@verongrauer.com; vivian@vsimportservices.com; vsimia@vsimportservices.com",null,null,"316-CCL VENEZIA"]
[null,null,null,null,null,null,null,null,null,null,null,null,null,null,null,null,null,null,null,null,null,null,null,null,null,null,null,null,null,null,null,null,null,null,null,null,null,null,null,null,null,null,null,null,null,null,null,null,null,null,null,null,null,null,null,null,null,81,"MARSEILLE - FRANCE","M/V  (Vessel Name) Ship Stores in Transit C/O PENTAGON FREIGHT - LANTIMAR","26 , AVENUE DE LONDRE ","FR 13127 VITROLLES","Paula Aviles / \nAlicia Diaz","34 649989974 / \n34 629401166 /               ","starboard@llantimar.com; rccl.brest@aut.fr",null,null,"317-CCL JUBILEE"]
[null,null,null,null,null,null,null,null,null,null,null,null,null,null,null,null,null,null,null,null,null,null,null,null,null,null,null,null,null,null,null,null,null,null,null,null,null,null,null,null,null,null,null,null,null,null,null,null,null,null,null,null,null,null,null,0,1,82,"MELBOURNE - AUSTRALIA","M/V  (Vessel Name) C/O Geodis Australia","37-41 South Centre Road\nMelbourne Airport, ","3045, Victoria\nAustralia","Kristy Sani (Marine Logistics Operations), Nathan Hope (Marine Logistics Operations), Hilda Gorail, Domenic Nesci","+61 (2) 9305 0317","nick.nocevski@geodis.com; cruisemel.ff.au@geodis.com; Cruiseprealerts.ff.au@geodis.com ",null,null,"319-CCL PANORAMA"]
[null,null,null,null,null,null,null,null,null,null,null,null,null,null,null,null,null,null,null,null,null,null,null,null,null,null,null,null,null,null,null,null,null,null,null,null,null,null,null,null,null,null,null,null,null,null,null,null,null,null,null,null,null,null,null,null,null,83,"MIAMI - US","M/V (VESSEL NAME)   C/O VSI , INC","11350 NW 25 Street, # 122","MIAMI, FL 33172","Vivian Suarez / \nPatricia Suarez","305-418-9200","vsimia@vsimportservices.com",null,null,"320-CCL FIRENZE"]
[null,null,null,null,null,null,null,null,null,null,null,null,null,null,null,null,null,null,null,null,null,null,null,null,null,null,null,null,null,null,null,null,null,null,null,null,null,null,null,null,null,null,null,null,null,null,null,null,null,null,null,null,null,null,null,null,null,84,"MONFALCON - ITALY","M/V  (Vessel Name) C/O PRIANO  MARCHELLI  & C.SRL","VIA DEGLI ARTIGINAI N.58/A\n BOLZANETO, ","16162 GENOA, ITALY ","Andrea Giachero","011-39-010-23581","d.calabretta@prianomarchelli.it; onboardservices@prianomarchelli.it ",null,null,"331-WGR LAS VEGAS"]
[null,null,null,null,null,null,null,null,null,null,null,null,null,null,null,null,null,null,null,null,null,null,null,null,null,null,null,null,null,null,null,null,null,null,null,null,null,null,null,null,null,null,null,null,null,null,null,null,null,null,null,null,null,null,null,null,null,85,"MONTEVIDEO - URUGUAY","M/V  (Vessel Name) C/O S. A. Financiera Y Comercial \nJ. R. Williams \n","Solis 1533, \nRUC#210171440013","11000 Montevideo, Uruguay ","Andrew Cooper / \nDaniel Cardarello","598-29162-000","acooper@jrwilliams.com.uy; dcardarello@jrwilliams.com.uy",null,null,"332-WESTGATE VILLAS"]
[null,null,null,null,null,null,null,null,null,null,null,null,null,null,null,null,null,null,null,null,null,null,null,null,null,null,null,null,null,null,null,null,null,null,null,null,null,null,null,null,null,null,null,null,null,null,null,null,null,null,null,null,null,null,null,null,null,86,"MONTREAL - CANADA","M/V  (Vessel Name) C/O McLean Kennedy Inc.  ","740 ST Maurice Suite 208                                                                                                                            ","Montreal Quebec H3C 1L5 Canada","Briana Robers \nPeter Dinter \nDan Karageore","(604) 207-8888 ext 142 / \n514-8496111","aerostream@aerostreamlogistics.com; cruiseops@aerostreamlogistics.com; agency@macleankennedy.ca",null,null,"350-SVS SILVER MUSE"]
[null,null,null,null,null,null,null,null,null,null,null,null,null,null,null,null,null,null,null,null,null,null,null,null,null,null,null,null,null,null,null,null,null,null,null,null,null,null,null,null,null,null,null,null,null,null,null,null,null,null,null,null,null,null,null,null,null,87,"NAGASAKI - JAPAN","MASTER OF M/V (Vessel Name) C/O UCI JP - Lantimar C/O Geneq Corp","2-85-8 Higashihama, Higashi-Ku","Fukuoka 812-0055, Japan","Paula Aviles / \nAlicia Diaz / \nMr Nakaya ","34 649989974 / \n34 629401166 / \n81-6-6265-0051                       ","starboard@lantimar.com; logistics.japan@lantimar.com",null,null,"351-SVS SILVER EXPLORER"]
[null,null,null,null,null,null,null,null,null,null,null,null,null,null,null,null,null,null,null,null,null,null,null,null,null,null,null,null,null,null,null,null,null,null,null,null,null,null,null,null,null,null,null,null,null,null,null,null,null,null,null,null,null,null,null,null,null,88,"NAPLES - ITALY","M/V  (Vessel Name) C/O PRIANO  MARCHELLI  & C.SRL","VIA DEGLI ARTIGINAI N.58/A\n BOLZANETO, ","16162 GENOA, ITALY ","Andrea Giachero","011-39-010-23581","d.calabretta@prianomarchelli.it; onboardservices@prianomarchelli.it ",null,null,"352-SVS SILVER MOON"]
[null,null,null,null,null,null,null,null,null,null,null,null,null,null,null,null,null,null,null,null,null,null,null,null,null,null,null,null,null,null,null,null,null,null,null,null,null,null,null,null,null,null,null,null,null,null,null,null,null,null,null,null,null,null,null,null,null,89,"NASSAU - BAHAMAS","M/V  (Vessel Name) C/O Freeport Ship Services","19A Peel Street P.O. Box F40423                                                   ","Freeport, Bahamas ","Theresa Cash","242-602-5000","Theresa@freeportshipservices.com; Logistics@freeportshipservices.com; ops@freeportshipservices.com 'Chaz Moss-Cartwright' <Chaz@freeportshipservices.com>",null,null,"353-SVS SILVER DAWN"]
[null,null,null,null,null,null,null,null,null,null,null,null,null,null,null,null,null,null,null,null,null,null,null,null,null,null,null,null,null,null,null,null,null,null,null,null,null,null,null,null,null,null,null,null,null,null,null,null,null,null,null,null,null,null,null,null,null,90,"NEW ORLEANS - US","M/V (VESSEL NAME)   C/O BERGERON FREIGHT C/O VSI , INC","150 Widgeon Driver ","St. Rose, LA 70087","Vivian Suarez / \nTiffany Willis","305-418-9200 / \n 504-443-3748","Tiffany@Bergeronfreight.com; ops@bergeronfreight.com; vsimia@vsimportservices.com",null,null,"354-SVS SILVER ENDEAVOR"]
[null,null,null,null,null,null,null,null,null,null,null,null,null,null,null,null,null,null,null,null,null,null,null,null,null,null,null,null,null,null,null,null,null,null,null,null,null,null,null,null,null,null,null,null,null,null,null,null,null,null,null,null,null,null,null,null,null,91,"NEW YORK - US","M/V (VESSEL NAME)   C/O TWC CFS Inc. C/O VSI, INC","145-02 156th Street, Jamaica,","11434 NEW YORK","Vivian Suarez / ","305-418-9200 / \n 718-527-0125","vsijfk@vsimportservices.com; vsimia@vsimportservices.com",null,null,"355-SVS SILVER NOVA"]
[null,null,null,null,null,null,null,null,null,null,null,null,null,null,null,null,null,null,null,null,null,null,null,null,null,null,null,null,null,null,null,null,null,null,null,null,null,null,null,null,null,null,null,null,null,null,null,null,null,null,null,null,null,null,null,null,null,92,"NICE - FRANCE","M/V  (Vessel Name) Ship Stores in Transit C/O TEMIS LUXURY","31-53 Rue Blaise Pascal ","93600 Aulnay-sous-Bois, FR","Pierre Emery \nVivian Suarez","33-1-48-19-83-44 \n41-22-761-59-66 \n305-418-9200 ","pierre.emery@verongrauer.com; vivian@vsimportservices.com; vsimia@vsimportservices.com",null,null,"356-SVS SILVER RAY"]
[null,null,null,null,null,null,null,null,null,null,null,null,null,null,null,null,null,null,null,null,null,null,null,null,null,null,null,null,null,null,null,null,null,null,null,null,null,null,null,null,null,null,null,null,null,null,null,null,null,null,null,null,null,null,null,null,null,93,"NOME - CANADA","M/V  (Vessel Name) SHIP STORES IN TRANSIT \nC/O AEROSTREAM C/O CLAA ","307 Belmont ST","Nome, AK 99762","Allen Mena \nKent Biden","206- 824-1576 Ext 431","amena@aerostreamusa.com; Kent.Biden@aerostreamusa.com; bchappell@aerostreamusa.com",null,null,"361-RWC GENTING DREAM"]
[null,null,null,null,null,null,null,null,null,null,null,null,null,null,null,null,null,null,null,null,null,null,null,null,null,null,null,null,null,null,null,null,null,null,null,null,null,null,null,null,null,null,null,null,null,null,null,null,null,null,null,null,null,null,null,null,null,94,"NUUK - GREENLAND","M/V  (Vessel Name) C/O Blue Water Greenland ","Nukappiakuluk 2,","3900 Nuuk, Greenland","Lars S. Vajse ","299 348220","Agency_nuuk@bws.dk; \nair_goh@bws.dk; \nsea_nuuk@bws.dk; ",null,null,"362-RWC RESORTS WORLD ONE"]
[null,null,null,null,null,null,null,null,null,null,null,null,null,null,null,null,null,null,null,null,null,null,null,null,null,null,null,null,null,null,null,null,null,null,null,null,null,null,null,null,null,null,null,null,null,null,null,null,null,null,null,null,null,null,null,null,null,95,"OKINAWA - JAPAN","MASTER OF M/V (Vessel Name) C/O UCI JP - Lantimar ","Naha Airport International Dep. \n400 Kagamizu Naha,"," Okinawa City, 901-0142, Japan ","Paula Aviles  / \nAlicia Diaz / \nMr Nakaya ","34 649989974 / \n34 629401166 / \n81-6-6265-0051                       ","starboard@lantimar.com; logistics.japan@lantimar.com",null,null,"363-RWC STAR SCORPIO"]
[null,null,null,null,null,null,null,null,null,null,null,null,null,null,null,null,null,null,null,null,null,null,null,null,null,null,null,null,null,null,null,null,null,null,null,null,null,null,null,null,null,null,null,null,null,null,null,null,null,null,null,null,null,null,null,null,null,96,"OSAKA - JAPAN","MASTER OF M/V (Vessel Name) C/O UCI JP - Lantimar ","No. 3 Cargo Agent Bldg 2FL,","Kansai Airport 549-0021 Japan","Paula Aviles / \nAlicia Diaz / \nMr Nakaya ","34 649989974 / \n34 629401166 / \n81-6-6265-0051                       ","starboard@lantimar.com; logistics.japan@lantimar.com",null,null,"370-SCENIC ECLIPSE I"]
[null,null,null,null,null,null,null,null,null,null,null,null,null,null,null,null,null,null,null,null,null,null,null,null,null,null,null,null,null,null,null,null,null,null,null,null,null,null,null,null,null,null,null,null,null,null,null,null,null,null,null,null,null,null,null,null,null,97,"OSLO - NORWAY","M/V  (Vessel Name) C/O Blue Water Shipping A/S","LUHRTOPPEN 2, 4TH FLOOR","LOERENSKOG 1470, NORWAY","Ann Kristin Elfgen","47-2102-0835","air_osl_imp@bws.dk; anke@bws.dk; Cruise_scandinavia@bws.dk",null,null,"371-SCENIC ECLIPSE II"]
[null,null,null,null,null,null,null,null,null,null,null,null,null,null,null,null,null,null,null,null,null,null,null,null,null,null,null,null,null,null,null,null,null,null,null,null,null,null,null,null,null,null,null,null,null,null,null,null,null,null,null,null,null,null,null,null,null,98,"PALERMO - ITALY","M/V  (Vessel Name) C/O PRIANO  MARCHELLI  & C.SRL","VIA DEGLI ARTIGINAI N.58/A\n BOLZANETO, ","16162 GENOA, ITALY ","Andrea Giachero","011-39-010-23581","d.calabretta@prianomarchelli.it; onboardservices@prianomarchelli.it ",null,null,"380-EMERALD AZZURRA"]
[null,null,null,null,null,null,null,null,null,null,null,null,null,null,null,null,null,null,null,null,null,null,null,null,null,null,null,null,null,null,null,null,null,null,null,null,null,null,null,null,null,null,null,null,null,null,null,null,null,null,null,null,null,null,null,null,null,99,"PALMAS DE MALLORCA  - SPAIN","M/V  (Vessel Name) C/O Lantimar Aduanas y Tránsitos, S.L. ","Ctra Porto Pi # 8,3A - 7d \nEdificio Reina Constanza ","07015 Palmas De Mallorca, Spain "," Paula Aviles / \nAlicia Diaz / ","34-64-998-9974 / \n34-62-940-1166 /  "," starboard@lantimar.com",null,null,"381-EMERALD SAKARA"]
[null,null,null,null,null,null,null,null,null,null,null,null,null,null,null,null,null,null,null,null,null,null,null,null,null,null,null,null,null,null,null,null,null,null,null,null,null,null,null,null,null,null,null,null,null,null,null,null,null,null,null,null,null,null,null,null,null,100,"PAPEETE - TAHITI - FRENCH POLYNESIA","M/V  (Vessel Name) C/O J.A. COWAN & FILS - as LANTIMAR Agents","BP 570 - 98713 ","PAPEETE \nTAHITI - POLYNÉSIE FRANÇAISE ","Paula Aviles / \nJasmina Veron ","34971700950 / \n(689) 4054.5700 ","paviles@lantimar.com; starboard@lantimar.com",null,null,"401-NCL EPIC"]
[null,null,null,null,null,null,null,null,null,null,null,null,null,null,null,null,null,null,null,null,null,null,null,null,null,null,null,null,null,null,null,null,null,null,null,null,null,null,null,null,null,null,null,null,null,null,null,null,null,null,null,null,null,null,null,null,null,101,"PERTH (FREMANTLE) - AUSTRALIA","M/V  (Vessel Name) C/O Geodis Australia Pty Ltd","80 Fawcett Cres\nPerth Airport WA 6105",null,"Brendan Robins (Marine Logistis Operations) Stuart Littlefair (Branch Manager)","612-9305-0302","brendan.robins@geodis.com; stuart.littlefair@geodis.com; starboardcruises.ff.au@geodis.com; nick.nocevski@geodis.com",null,null,"402-NCL EPIC CREW SLOP CHEST"]
[null,null,null,null,null,null,null,null,null,null,null,null,null,null,null,null,null,null,null,null,null,null,null,null,null,null,null,null,null,null,null,null,null,null,null,null,null,null,null,null,null,null,null,null,null,null,null,null,null,null,null,null,null,null,null,null,null,102,"PHILLPSBURG - ST MAARTEN","M/V  (Vessel Name) C/O RMP CARAIBES ","RMP CARAIBES PORT DU GALISBAY","97150 ST. MARTIN","Patricia Suarez / \nFABRICE PERRY / \nVéronique Demanesse ","(305) 418-9200 EXT 303 \n05 90520286","patricia@vsimportservices.com; cs@vsimportservices.com; fp@rmp-caraibes.com; adminsxm@rmp-caraibes.com",null,null,"403-NCL BREAKAWAY"]
[null,null,null,null,null,null,null,null,null,null,null,null,null,null,null,null,null,null,null,null,null,null,null,null,null,null,null,null,null,null,null,null,null,null,null,null,null,null,null,null,null,null,null,null,null,null,null,null,null,null,null,null,null,null,null,null,null,103,"PIRAEUS - GREECE","M/V  (Vessel Name) C/O Trias Ltd – Wilhelmsen Port Services","Akti Xaveriou 28, \nPort Gate E11 ","185 38 Piraeus, Greece ","MARY VARRA /\nJOHN EFSTATHIOU","30 211 199 6073 / \n30 21 1199 6071","mary.varra@wilhelmsen.com; \njohn.efstathiou@wilhelmsen.com; \nwps.greece.cruiseagency@wilhelmsen.com",null,null,"404-NCL BREAKAWAY CREW SLOP CHEST"]
[null,null,null,null,null,null,null,null,null,null,null,null,null,null,null,null,null,null,null,null,null,null,null,null,null,null,null,null,null,null,null,null,null,null,null,null,null,null,null,null,null,null,null,null,null,null,null,null,null,null,null,null,null,null,null,null,null,104,"PORT CANAVERAL - US","M/V (VESSEL NAME)   C/O VSI , INC","11350 NW 25 Street, # 122","MIAMI, FL 33172","Vivian Suarez / \nPatricia Suarez","305-418-9200","vsimia@vsimportservices.com",null,null,"405-NCL GETAWAY"]
[null,null,null,null,null,null,null,null,null,null,null,null,null,null,null,null,null,null,null,null,null,null,null,null,null,null,null,null,null,null,null,null,null,null,null,null,null,null,null,null,null,null,null,null,null,null,null,null,null,null,null,null,null,null,null,null,null,105,"PORT EVERGLADES - US","M/V (VESSEL NAME)   C/O VSI , INC","11350 NW 25 Street, # 122","MIAMI, FL 33172","Vivian Suarez / \nPatricia Suarez","305-418-9200","vsimia@vsimportservices.com",null,null,"406-NCL GETAWAY CREW SLOP CHEST"]
[null,null,null,null,null,null,null,null,null,null,null,null,null,null,null,null,null,null,null,null,null,null,null,null,null,null,null,null,null,null,null,null,null,null,null,null,null,null,null,null,null,null,null,null,null,null,null,null,null,null,null,null,null,null,null,null,null,106,"PORT LOUIS - MAURITIUS","TO THE MASTER OF (Vessel Name) SHIP SOTERS IN TRANSIT C/O CELERO GROUP - LANTIMAR ","Motorway M1 10 Tanner Street,"," Port Louis, Rep  of Mauritius                                                                                        Postal Code 11304 ","Paula Aviles / \nAlicia Diaz / \nNizam Goolamhossen ","34 649989974 / \n34 629401166 / \n81-6-6265-0051","starboard@lantimar.com; jmarie-louise@celerogroup.com",null,null,"407-NCL ENCORE"]
[null,null,null,null,null,null,null,null,null,null,null,null,null,null,null,null,null,null,null,null,null,null,null,null,null,null,null,null,null,null,null,null,null,null,null,null,null,null,null,null,null,null,null,null,null,null,null,null,null,null,null,null,null,null,null,null,null,107,"PORT OF TAMPA - US","M/V (VESSEL NAME)   C/O VSI , INC","11350 NW 25 Street, # 122","MIAMI, FL 33172","Vivian Suarez / \nPatricia Suarez","305-418-9200","vsimia@vsimportservices.com",null,null,"408-NCL ENCORE CREW SLOP CHEST"]
[null,null,null,null,null,null,null,null,null,null,null,null,null,null,null,null,null,null,null,null,null,null,null,null,null,null,null,null,null,null,null,null,null,null,null,null,null,null,null,null,null,null,null,null,null,null,null,null,null,null,null,null,null,null,null,null,null,108,"PUERTO WILLIAMS - CHILE","M/V  (Vessel Name) C/O A. J. Broom Y CIA S.A.C Ltd","Almirante Señoret 70 – Piso 10","VALPARAISO – Chile","Mario Montero \nVictor Catalan Martinez","32-2268209 \n32-2268318","mmontero@broomgroup.com",null,null,"450-BLU BLUE DREAM STAR"]
[null,null,null,null,null,null,null,null,null,null,null,null,null,null,null,null,null,null,null,null,null,null,null,null,null,null,null,null,null,null,null,null,null,null,null,null,null,null,null,null,null,null,null,null,null,null,null,null,null,null,null,null,null,null,null,null,null,109,"PUNTA ARENAS - CHILE","M/V  (Vessel Name) C/O A. J. Broom Y CIA S.A.C Ltd","Almirante Señoret 70 – Piso 10","VALPARAISO – Chile","Mario Montero \nVictor Catalan Martinez","32-2268209 \n32-2268318","mmontero@broomgroup.com",null,null,"451-BLUE DREAM MELODY"]
[null,null,null,null,null,null,null,null,null,null,null,null,null,null,null,null,null,null,null,null,null,null,null,null,null,null,null,null,null,null,null,null,null,null,null,null,null,null,null,null,null,null,null,null,null,null,null,null,null,null,null,null,null,null,null,null,null,110,"RENDSBURG - GERMANY","M/V  (Vessel Name) C/O Paulsen & Ivers   ","Alte Schleuse 13 - 15","21107 Hamburg, Germany","Reimer Philips-Horst / \nRoberto Menzel","49-0-40-73-44-6254 / \n49-0-40-73-44-6255","r.horst@paulsen-ivers.de",null,null,"551-AZA JOURNEY"]
[null,null,null,null,null,null,null,null,null,null,null,null,null,null,null,null,null,null,null,null,null,null,null,null,null,null,null,null,null,null,null,null,null,null,null,null,null,null,null,null,null,null,null,null,null,null,null,null,null,null,null,null,null,null,null,null,null,111,"REYKJAVIK - ICELAND","M/V  (Vessel Name) C/O Blue Water Shipping Ehf. Iceland","Hedinsgata 1-3 ","104 Reykjavik - Iceland","Andreas Bach Jensen","45 7913 5044 / \n354 510 4480","anbj@bws.dk; starboard_dk@bws.dk",null,null,"552-AZA QUEST"]
[null,null,null,null,null,null,null,null,null,null,null,null,null,null,null,null,null,null,null,null,null,null,null,null,null,null,null,null,null,null,null,null,null,null,null,null,null,null,null,null,null,null,null,null,null,null,null,null,null,null,null,null,null,null,null,null,null,112,"RIJEKA - CROATIA","M/V  (Vessel Name) C/O TERES d.o.o.","OSJECKA 47, HR- ","51000 RIJEKA, Croatia","Paula Aviles \nMario Jelavic",null,"starboard@lantimar.com; mario.jelavic@bandic.hr;  operations@bandic.hr ",null,null,"553-AZA PURSUIT"]
[null,null,null,null,null,null,null,null,null,null,null,null,null,null,null,null,null,null,null,null,null,null,null,null,null,null,null,null,null,null,null,null,null,null,null,null,null,null,null,null,null,null,null,null,null,null,null,null,null,null,null,null,null,null,null,null,null,113,"RIO DE JANEIRO - BRAZIL","To The MASTER OF M/V   (Vessel Name) C/O ISS Marine Services Ltda.","Rua Conselheiro Saraiva, 28-4 Andar \nCEP 20.091-030 \nCNPJ: 05.429.268/0001-67 ","Rio De Janeiro, RJ Brazil ","Luis Franca","55- 21- 3622-5756","Luis.Franca@iss-shipping.com; Alex.Reis@iss-shipping.com;  ",null,null,"554-AZA ONWARD"]
[null,null,null,null,null,null,null,null,null,null,null,null,null,null,null,null,null,null,null,null,null,null,null,null,null,null,null,null,null,null,null,null,null,null,null,null,null,null,null,null,null,null,null,null,null,null,null,null,null,null,null,null,null,null,null,null,null,114,"ROSTOCK - GERMANY","M/V  (Vessel Name) C/O Paulsen & Ivers   ","Alte Schleuse 13 - 15","21107 Hamburg, Germany","Reimer Philips-Horst / \nRoberto Menzel","49-0-40-73-44-6254 / \n49-0-40-73-44-6255","r.horst@paulsen-ivers.de",null,null,"610-SKY GOLDEN ERA"]
[null,null,null,null,null,null,null,null,null,null,null,null,null,null,null,null,null,null,null,null,null,null,null,null,null,null,null,null,null,null,null,null,null,null,null,null,null,null,null,null,null,null,null,null,null,null,null,null,null,null,null,null,null,null,null,null,null,115,"ROTTERDAM - NETHERLANDS","M/V  (Vessel Name) C/O SSL Ship Spares Logistics BV","Bunschotenweg 115 Port number 2678  ","3089 KB Rotterdam  The Netherlands","Lars van Grevenbroek ","31 (0)10-294-1224 ","lars.grevenbroek@burando.eu; laura.verheij@burando.eu; jelle@burando.eu ",null,null,"611-SKYSEA 2"]
[null,null,null,null,null,null,null,null,null,null,null,null,null,null,null,null,null,null,null,null,null,null,null,null,null,null,null,null,null,null,null,null,null,null,null,null,null,null,null,null,null,null,null,null,null,null,null,null,null,null,null,null,null,null,null,null,null,116,"SAINT NAZAIRE - FRANCE","M/V  (Vessel Name) C/O Sogebras St Nazaire/ Montoir  O/B LANTIMAR","Rue des Morees, \nBP 20 44550 ","44550 Montoir de Bretagne, France","Paula Aviles / \nAlicia Diaz","34 649989974 / \n34 629401166 /               ","starboard@lantimar.com; v.houguet@sogrebas.fr",null,null,"650-CRYSTAL SERENITY"]
[null,null,null,null,null,null,null,null,null,null,null,null,null,null,null,null,null,null,null,null,null,null,null,null,null,null,null,null,null,null,null,null,null,null,null,null,null,null,null,null,null,null,null,null,null,null,null,null,null,null,null,null,null,null,null,null,null,117,"SAN FRANCISCO - US","M/V (VESSEL NAME)   C/O VSI LAX","273 E. Redondo Beach Blvd.","Gardena , CA 90248","Jaime Quintana / \nVivian Suarez ","310-515-6870 / \n 305-418-9200","vsilax@vsimportservices.com",null,null,"651-CRL CRYSTAL SYMPHONY"]
[null,null,null,null,null,null,null,null,null,null,null,null,null,null,null,null,null,null,null,null,null,null,null,null,null,null,null,null,null,null,null,null,null,null,null,null,null,null,null,null,null,null,null,null,null,null,null,null,null,null,null,null,null,null,null,null,null,118,"SAN JUAN - PUERTO RICO","M/V  (Vessel Name) C/O   HERMIS TRANSPORT","360 San Francisco\n","San Juan, PR 00901","Miguel Farres","(787) 723-7368 ","hermis@prtc.net",null,null,"652-CRL SERENITY CREW SLOP CHEST"]
[null,null,null,null,null,null,null,null,null,null,null,null,null,null,null,null,null,null,null,null,null,null,null,null,null,null,null,null,null,null,null,null,null,null,null,null,null,null,null,null,null,null,null,null,null,null,null,null,null,null,null,null,null,null,null,null,null,119,"SAND DIEGO - US","M/V (VESSEL NAME)   C/O VSI LAX","273 E. Redondo Beach Blvd.","Gardena , CA 90248","Jaime Quintana / \nVivian Suarez ","310-515-6870 / \n 305-418-9200","vsilax@vsimportservices.com",null,null,"653-CRL SYMPHONY CREW SLOP CHEST"]
[null,null,null,null,null,null,null,null,null,null,null,null,null,null,null,null,null,null,null,null,null,null,null,null,null,null,null,null,null,null,null,null,null,null,null,null,null,null,null,null,null,null,null,null,null,null,null,null,null,null,null,null,null,null,null,null,null,120,"SANTO DOMINGO - DOMINICA REPUBLIC","M/V  (Vessel Name) C/O Agencia Maritima Oriental","Avenida Romulo Betancourt No. 1354,  Suite 1-B, Bella Vista\nRNC: 1-1210342-2","Santo Domingo, Republica Dominicana, 10111","Cesar Garcia / \nFrancisco Bueno","809-519-3832 \n809-541-1034","cgarcia@maritimaoriental.com",null,null,"654-CRL CRYSTAL ENDEAVOR"]
[null,null,null,null,null,null,null,null,null,null,null,null,null,null,null,null,null,null,null,null,null,null,null,null,null,null,null,null,null,null,null,null,null,null,null,null,null,null,null,null,null,null,null,null,null,null,null,null,null,null,null,null,null,null,null,null,null,121,"SANTOS - BRAZIL","To The MASTER OF M/V   (Vessel Name) C/O ISS Marine Services Ltda.                                                                      Inchcape Shipping Services (Santos)","Rua Guaiao. 66-26. Andar -Sala 2601, \nAparecida, Santos - \nCEP. 11035-260                                                                      CNPJ.05.429.268/0003-29,                                    ","Santos - Brazil ","Rafael Dias / \nLívia Carvalho ","55-11-4632-2180","isssantos@iss-shipping.com; rafael.dias@iss-shipping.com; Crew.ISSBrazil@iss-shipping.com; iss.USAPOP@ISS-shipping.com; SMBX.ISSSantos@iss-shipping.com",null,null,"656-CRYSTAL SERENITY"]
[null,null,null,null,null,null,null,null,null,null,null,null,null,null,null,null,null,null,null,null,null,null,null,null,null,null,null,null,null,null,null,null,null,null,null,null,null,null,null,null,null,null,null,null,null,null,null,null,null,null,null,null,null,null,null,null,null,122,"SASEBO - JAPAN","MASTER OF M/V (Vessel Name) C/O UCI JP - Lantimar C/O Geneq Corp","2-85-8 Higashihama, Higashi-Ku","Fukuoka 812-0055, Japan","Paula Aviles / \nAlicia Diaz / \nMr Nakaya ","34 649989974 / \n34 629401166 / \n81-6-6265-0051                       ","starboard@lantimar.com; logistics.japan@lantimar.com",null,null,"657-CRYSTAL SYMPHONY"]
[null,null,null,null,null,null,null,null,null,null,null,null,null,null,null,null,null,null,null,null,null,null,null,null,null,null,null,null,null,null,null,null,null,null,null,null,null,null,null,null,null,null,null,null,null,null,null,null,null,null,null,null,null,null,null,null,null,123,"SASSNITZ  - GERMANY","M/V  (Vessel Name) C/O Paulsen & Ivers   ","Alte Schleuse 13 - 15","21107 Hamburg, Germany","Reimer Philips-Horst / \nRoberto Menzel","49-0-40-73-44-6254 / \n49-0-40-73-44-6255","r.horst@paulsen-ivers.de",null,null,"701-CEL SILHOUETTE"]
[null,null,null,null,null,null,null,null,null,null,null,null,null,null,null,null,null,null,null,null,null,null,null,null,null,null,null,null,null,null,null,null,null,null,null,null,null,null,null,null,null,null,null,null,null,null,null,null,null,null,null,null,null,null,null,null,null,124,"SAVONA - ITALY","M/V  (Vessel Name) C/O PRIANO  MARCHELLI  & C.SRL","VIA DEGLI ARTIGINAI N.58/A\n BOLZANETO, ","16162 GENOA, ITALY ","Andrea Giachero","011-39-010-23581","d.calabretta@prianomarchelli.it; onboardservices@prianomarchelli.it ",null,null,"702-CEL REFLECTION"]
[null,null,null,null,null,null,null,null,null,null,null,null,null,null,null,null,null,null,null,null,null,null,null,null,null,null,null,null,null,null,null,null,null,null,null,null,null,null,null,null,null,null,null,null,null,null,null,null,null,null,null,null,null,null,null,null,null,125,"SEATTLE  - US","M/V  (Vessel Name) C/O Aerostream Logistics ","835 S. 192 St. Ste 100","Seattle, WA 98148","Henry Dinter","(206) 824-1576 ext 430","cruiseops@aerostreamlogistics.com; seattle@aerostreamlogistics.com; ",null,null,"703-CEL ECLIPSE"]
[null,null,null,null,null,null,null,null,null,null,null,null,null,null,null,null,null,null,null,null,null,null,null,null,null,null,null,null,null,null,null,null,null,null,null,null,null,null,null,null,null,null,null,null,null,null,null,null,null,null,null,null,null,null,null,null,null,126,"SEWARD - CANADA","M/V  (Vessel Name) SHIP STORES IN TRANSIT \nC/O AEROSTREAM C/O CLAA ","307 Belmont ST","Nome, AK 99762","Allen Mena \nKent Biden","206- 824-1576 Ext 431","amena@aerostreamusa.com; Kent.Biden@aerostreamusa.com; bchappell@aerostreamusa.com",null,null,"704-CEL EQUINOX"]
[null,null,null,null,null,null,null,null,null,null,null,null,null,null,null,null,null,null,null,null,null,null,null,null,null,null,null,null,null,null,null,null,null,null,null,null,null,null,null,null,null,null,null,null,null,null,null,null,null,null,null,null,null,null,null,null,null,127,"SINGAPORE - SINGAPORE","M/V  (Vessel Name)  (ships stores in transit) C/O Wallem Shipping (s) PTE LTD  ","991 Alexandra Road # 02-04/05","Singapore 119964","Thanam Sitharam (Ms)","65-6271-2611 ; 6872 3333","TR@wallem.com.sg; chowfx@tworldintl.com; ops@wallem.com.sg",null,null,"705-CEL SOLSTICE"]
[null,null,null,null,null,null,null,null,null,null,null,null,null,null,null,null,null,null,null,null,null,null,null,null,null,null,null,null,null,null,null,null,null,null,null,null,null,null,null,null,null,null,null,null,null,null,null,null,null,null,null,null,null,null,null,null,null,128,"SOUDA  - GREECE","M/V  (Vessel Name) C/O Trias Ltd – Wilhelmsen Port Services","Akti Xaveriou 28, \nPort Gate E11 ","185 38 Piraeus, Greece ","MARY VARRA /\nJOHN EFSTATHIOU","30 211 199 6073 / \n30 21 1199 6071","mary.varra@wilhelmsen.com; \njohn.efstathiou@wilhelmsen.com; \nwps.greece.cruiseagency@wilhelmsen.com",null,null,"706-CEL EDGE"]
[null,null,null,null,null,null,null,null,null,null,null,null,null,null,null,null,null,null,null,null,null,null,null,null,null,null,null,null,null,null,null,null,null,null,null,null,null,null,null,null,null,null,null,null,null,null,null,null,null,null,null,null,null,null,null,null,null,129,"SOUTHAMPTON - U.K","M/V  (Vessel Name) C/O Southampton Freight Services Ltd","Units F & G, Griffin Industrial Park, Totton, ","Southampton, Hampshire, SO40 3SH, GB\nUnited Kingdom","Russell Cox / \nJohn Smith ","011-44-2380-860999","cruise@sotonfreight.co.uk; Russell@sotonfreight.co.uk; john@sotonfreight.co.uk",null,null,"707-CEL APEX"]
[null,null,null,null,null,null,null,null,null,null,null,null,null,null,null,null,null,null,null,null,null,null,null,null,null,null,null,null,null,null,null,null,null,null,null,null,null,null,null,null,null,null,null,null,null,null,null,null,null,null,null,null,null,null,null,null,null,130,"ST JHONS - BARBUDA","To The MASTER OF (Vessel Name) C/O F & G TRADING CO","Lower Dickenson Bay Street","St. John Antigua, Barbuda","Vivian Suarez, \nPatricia Suarez, \nFoston Jorge","305-418-9200 / \n268-764-3040","vivian@vsimportservices.com; patricia@vsimportservices.com; info@fandgtrading.com",null,null,"708-CEL BEYOND"]
[null,null,null,null,null,null,null,null,null,null,null,null,null,null,null,null,null,null,null,null,null,null,null,null,null,null,null,null,null,null,null,null,null,null,null,null,null,null,null,null,null,null,null,null,null,null,null,null,null,null,null,null,null,null,null,null,null,131,"ST THOMAS - US VIRGIN ISLAND","M/V  (Vessel Name) C/O Bob Lynch Trucking & Shipping, Inc.","#4 Cargo Center\nCyril E. King Airport\n","St. Thomas, USVI  00802","Jeannette Brown","340-774-5872","wico@boblynchmovers.com ",null,null,"709-CEL ASCENT"]
[null,null,null,null,null,null,null,null,null,null,null,null,null,null,null,null,null,null,null,null,null,null,null,null,null,null,null,null,null,null,null,null,null,null,null,null,null,null,null,null,null,null,null,null,null,null,null,null,null,null,null,null,null,null,null,null,null,132,"STADE - GERMANY","M/V  (Vessel Name) C/O Paulsen & Ivers   ","Alte Schleuse 13 - 15","21107 Hamburg, Germany","Reimer Philips-Horst / \nRoberto Menzel","49-0-40-73-44-6254 / \n49-0-40-73-44-6255","r.horst@paulsen-ivers.de",null,null,"740-TUI MEIN SCHIFF 7"]
[null,null,null,null,null,null,null,null,null,null,null,null,null,null,null,null,null,null,null,null,null,null,null,null,null,null,null,null,null,null,null,null,null,null,null,null,null,null,null,null,null,null,null,null,null,null,null,null,null,null,null,null,null,null,null,null,null,133,"STOCKHOLM  - SWEDEN ","M/V  (Vessel Name) C/O Blue Water Shipping AB C/O TT Terminal ","Industrigatan 16,"," 19560 Arlandastad","Jimmy Sigelin / \nFrida Jalking","46 317644846 / \n46 317644889 ","starboard_se@bws.dk",null,null,"741-TUI MEIN SCHIFF RELAX"]
[null,null,null,null,null,null,null,null,null,null,null,null,null,null,null,null,null,null,null,null,null,null,null,null,null,null,null,null,null,null,null,null,null,null,null,null,null,null,null,null,null,null,null,null,null,null,null,null,null,null,null,null,null,null,null,null,null,134,"STRALSUND  - GERMANY","M/V  (Vessel Name) C/O Paulsen & Ivers   ","Alte Schleuse 13 - 15","21107 Hamburg, Germany","Reimer Philips-Horst / \nRoberto Menzel","49-0-40-73-44-6254 / \n49-0-40-73-44-6255","r.horst@paulsen-ivers.de",null,null,"750-SCARLET LADY"]
[null,null,null,null,null,null,null,null,null,null,null,null,null,null,null,null,null,null,null,null,null,null,null,null,null,null,null,null,null,null,null,null,null,null,null,null,null,null,null,null,null,null,null,null,null,null,null,null,null,null,null,null,null,null,null,null,null,135,"SYDNEY - AUSTRALIA","M/V  (Vessel Name) C/O Geodis Australia","(Inside ACFS Terminal)     \n     2 Simblist Street, Port Botany, 2036 NSW Warehouse 5 (door 4)    \n ","Port Botany Sydney 2036","Nick Nocevski ( Mgr)  (Mgr) / Katherina  61 2 93050326                                      Cathy +61 2 93050316 / Amy +61 2 93050325 ",null,"nick.nocevski@geodis.com; starboardcruises.ff.au@geodis.com; cathy.magnus@geodis.com;  ajit.singh@geodis.com ",null,null,"752-VALIANT LADY"]
[null,null,null,null,null,null,null,null,null,null,null,null,null,null,null,null,null,null,null,null,null,null,null,null,null,null,null,null,null,null,null,null,null,null,null,null,null,null,null,null,null,null,null,null,null,null,null,null,null,null,null,null,null,null,null,null,null,136,"TAIPEI - TAIWAN","M/V  (Vessel Name) C/O CTSI LOGISTICS (TAIWAN) INC ","11F - 4 No. 206, Songliang Road,                                              ","Taipei, Taiwan. # 10467","JOHNNY YEH / \nCATLIN WEI ","886-2-2531-9761","catlin_wei@ctsitwn.com.tw;   johnny_yeh@ctsitwn.com.tw; starboard@lantimar.com",null,null,"754-RESILIENT LADY"]
[null,null,null,null,null,null,null,null,null,null,null,null,null,null,null,null,null,null,null,null,null,null,null,null,null,null,null,null,null,null,null,null,null,null,null,null,null,null,null,null,null,null,null,null,null,null,null,null,null,null,null,null,null,null,null,null,null,137,"TAURANGA - NEW ZEALAND","Inchcape-McKay C/O Geodis Wilson M/V  (Vessel Name)","25 Timberly Road,Mangere\nAuckland Airport 2022\n","Auckland,New Zealand ","Susan Zhang / \nManuel Arado / \nRichard Carvalho / \nKatja Mewes","011- 64 9 309 4266","susan.zhang@iss-mckay.co.nz; \nclearance@hobbsglobal.co.nz; \nshirley@hobbsglobal.co.nz; ",null,null,"756-BRILLIANT LADY"]
[null,null,null,null,null,null,null,null,null,null,null,null,null,null,null,null,null,null,null,null,null,null,null,null,null,null,null,null,null,null,null,null,null,null,null,null,null,null,null,null,null,null,null,null,null,null,null,null,null,null,null,null,null,null,null,null,null,138,"THE HAGUE- SCHEVENINGEN - NETHERLANDS","M/V  (Vessel Name) C/O SSL Ship Spares Logistics BV","Bunschotenweg 115 Port number 2678  ","3089 KB Rotterdam  The Netherlands","Lars van Grevenbroek ","31 (0)10-294-1224 ","lars.grevenbroek@burando.eu; laura.verheij@burando.eu; jelle@burando.eu ",null,null,"850-RTZ EVRIMA"]
[null,null,null,null,null,null,null,null,null,null,null,null,null,null,null,null,null,null,null,null,null,null,null,null,null,null,null,null,null,null,null,null,null,null,null,null,null,null,null,null,null,null,null,null,null,null,null,null,null,null,null,null,null,null,null,null,null,139,"TILBURY - U.K","M/V  (Vessel Name) C/O Southampton Freight Services Ltd","Units F & G, Griffin Industrial Park, Totton, ","Southampton, Hampshire, SO40 3SH, GB\nUnited Kingdom","Russell Cox / \nJohn Smith ","011-44-2380-860999","cruise@sotonfreight.co.uk; Russell@sotonfreight.co.uk; john@sotonfreight.co.uk",null,null,"851-RTZ ILMA"]
[null,null,null,null,null,null,null,null,null,null,null,null,null,null,null,null,null,null,null,null,null,null,null,null,null,null,null,null,null,null,null,null,null,null,null,null,null,null,null,null,null,null,null,null,null,null,null,null,null,null,null,null,null,null,null,null,null,140,"TOKYO - JAPAN","MASTER OF M/V (Vessel Name) C/O UCI JP - Lantimar ","305-A Cargo Agent Bldg No. 1, ","Narita Airport, Chiba, Japan 282-0004","PaulaAviles / \nAliciaDiaz / \nMrNakaya","34 649989974 / \n34 629401166 / \n81-6-6265-0051                       ","starboard@lantimar.com; logistics.japan@lantimar.com",null,null,"852-RTZ LUMINARA"]
[null,null,null,null,null,null,null,null,null,null,null,null,null,null,null,null,null,null,null,null,null,null,null,null,null,null,null,null,null,null,null,null,null,null,null,null,null,null,null,null,null,null,null,null,null,null,null,null,null,null,null,null,null,null,null,null,null,141,"TRIESTE - ITALY","M/V  (Vessel Name) C/O PRIANO  MARCHELLI  & C.SRL","VIA DEGLI ARTIGINAI N.58/A\n BOLZANETO, ","16162 GENOA, ITALY ","Andrea Giachero","011-39-010-23581","d.calabretta@prianomarchelli.it; onboardservices@prianomarchelli.it ",null,null,"860-MITSUI OCEAN FUJI"]
[null,null,null,null,null,null,null,null,null,null,null,null,null,null,null,null,null,null,null,null,null,null,null,null,null,null,null,null,null,null,null,null,null,null,null,null,null,null,null,null,null,null,null,null,null,null,null,null,null,null,null,null,null,null,null,null,null,142,"TROMSO - NORWAY","M/V  (Vessel Name) C/O Blue Water Shipping A/S","LUHRTOPPEN 2, 4TH FLOOR","LOERENSKOG 1470, NORWAY","Ann Kristin Elfgen","47-2102-0835","air_osl_imp@bws.dk; anke@bws.dk; Cruise_scandinavia@bws.dk"]
[null,null,null,null,null,null,null,null,null,null,null,null,null,null,null,null,null,null,null,null,null,null,null,null,null,null,null,null,null,null,null,null,null,null,null,null,null,null,null,null,null,null,null,null,null,null,null,null,null,null,null,null,null,null,null,null,null,143,"TURKU - FINLAND","M/V  (Vessel Name) BEWESHIP FORWARDING O/B LANTIMAR","Nuolikuja 8, Fl-01740 \nVantaa,","Helsinki, Finland ","Paula Aviles / \nAlicia Diaz / \nPasi Hakkinen / ","34 649989974 / \n34 629401166 / \n358-20-7857-500 / \n358-20-7857-443 / ","starboard@lantimar.com; lantimar@beweship.com; pasi.hakkinen@beweship.com; "]
[null,null,null,null,null,null,null,null,null,null,null,null,null,null,null,null,null,null,null,null,null,null,null,null,null,null,null,null,null,null,null,null,null,null,null,null,null,null,null,null,null,null,null,null,null,null,null,null,null,null,null,null,null,null,null,null,null,144,"USHUAIA - ARGENTINA","Master M/V  (Vessel Name) C/O Agencia Maritima Internacional S.A O/B Lantimar","25 de Mayo 555 – 20th Floor\n(C1 002ABK) \nCuit: 30-58534342-7","Buenos Aires, Argentina","Paula Aviles / \nAlicia Diaz","34 649989974 / \n34 629401166 /               ","starboard@lantimar.com; sservidio@ulog.com.ar"]
[null,null,null,null,null,null,null,null,null,null,null,null,null,null,null,null,null,null,null,null,null,null,null,null,null,null,null,null,null,null,null,null,null,null,null,null,null,null,null,null,null,null,null,null,null,null,null,null,null,null,null,null,null,null,null,null,null,145,"VALLETTA - MALTA","M/V  (Vessel Name) C/O LANTIMAR C/O SG Distributors Ltd","Marina Milling Complex\nIndustrial Estate","Marsa MRS3000, Malta","Paula Aviles / \nAlicia Diaz","34 649989974 / \n34 629401166 /               ","starboard@lantimar.com"]
[null,null,null,null,null,null,null,null,null,null,null,null,null,null,null,null,null,null,null,null,null,null,null,null,null,null,null,null,null,null,null,null,null,null,null,null,null,null,null,null,null,null,null,null,null,null,null,null,null,null,null,null,null,null,null,null,null,146,"VALPARAISO - CHILE","M/V  (Vessel Name) C/O A. J. Broom Y CIA S.A.C Ltd","Almirante Señoret 70 – Piso 10","VALPARAISO – Chile","Mario Montero \nVictor Catalan Martinez","32-2268209 \n32-2268318","mmontero@broomgroup.com"]
[null,null,null,null,null,null,null,null,null,null,null,null,null,null,null,null,null,null,null,null,null,null,null,null,null,null,null,null,null,null,null,null,null,null,null,null,null,null,null,null,null,null,null,null,null,null,null,null,null,null,null,null,null,null,null,null,null,147,"VANCOUVER - CANADA","M/V  (Vessel Name) C/O Aerostream Logistics ","5000 Miller Road, Suite 2080                  ","Richmond, BC Canada V7B 1K6                ","Briana Roberts \nPeter Dinter","(604) 207-8888 ext 2223","aerostream@aerostreamlogistics.com; cruiseops@aerostreamlogistics.com",null,null," "]
[null,null,null,null,null,null,null,null,null,null,null,null,null,null,null,null,null,null,null,null,null,null,null,null,null,null,null,null,null,null,null,null,null,null,null,null,null,null,null,null,null,null,null,null,null,null,null,null,null,null,null,null,null,null,null,null,null,148,"VENEZIA - ITALY","M/V  (Vessel Name) C/O Central Shipping Agency C/O Bossi Autotransporti","via dell’Azoto 4\n","30175 Marghera Venezia","Sonia Albertini ","011-39-041-931644","operativo@csa-ve.it; linda@csa-ve.it",null,null," "]
[null,null,null,null,null,null,null,null,null,null,null,null,null,null,null,null,null,null,null,null,null,null,null,null,null,null,null,null,null,null,null,null,null,null,null,null,null,null,null,null,null,null,null,null,null,null,null,null,null,null,null,null,null,null,null,null,null,149,"VENICE  - ITALY","M/V  (Vessel Name) C/O PRIANO  MARCHELLI  & C.SRL","VIA DEGLI ARTIGINAI N.58/A\n BOLZANETO, ","16162 GENOA, ITALY ","Andrea Giachero","011-39-010-23581","d.calabretta@prianomarchelli.it; onboardservices@prianomarchelli.it "]
[null,null,null,null,null,null,null,null,null,null,null,null,null,null,null,null,null,null,null,null,null,null,null,null,null,null,null,null,null,null,null,null,null,null,null,null,null,null,null,null,null,null,null,null,null,null,null,null,null,null,null,null,null,null,null,null,null,150,"VIGO - SPAIN"," “Vessel Name” C/O LANTIMAR- SERGU, S.A.\n "," C/Montero Ríos 8-Bajo ","36201 VIGO - Spain"," Paula Aviles / \nAlicia Diaz / ","34-64-998-9974 / \n34-62-940-1166 /  ","starboard@lantimar.com; Sira.Aranguren.L@sergusa.com "]
[null,null,null,null,null,null,null,null,null,null,null,null,null,null,null,null,null,null,null,null,null,null,null,null,null,null,null,null,null,null,null,null,null,null,null,null,null,null,null,null,null,null,null,null,null,null,null,null,null,null,null,null,null,null,null,null,null,151,"WILHELMSHAVEN - GERMANY","M/V  (Vessel Name) C/O Paulsen & Ivers   ","Alte Schleuse 13 - 15","21107 Hamburg, Germany","Reimer Philips-Horst / \nRoberto Menzel","49-0-40-73-44-6254 / \n49-0-40-73-44-6255","r.horst@paulsen-ivers.de"]
[null,null,null,null,null,null,null,null,null,null,null,null,null,null,null,null,null,null,null,null,null,null,null,null,null,null,null,null,null,null,null,null,null,null,null,null,null,null,null,null,null,null,null,null,null,null,null,null,null,null,null,null,null,null,null,null,null,152,"YATSUSHIRO-KUMAMOTO - JAPAN","MASTER OF M/V (Vessel Name) C/O UCI JP - Lantimar C/O Geneq Corp","2-85-8 Higashihama, Higashi-Ku","Fukuoka 812-0055, Japan","Paula Aviles / \nAlicia Diaz / \nMr Nakaya ","34 649989974 /\n34 629401166 / \n81-6-6265-0051                       ","starboard@lantimar.com; logistics.japan@lantimar.com"]
[null,null,null,null,null,null,null,null,null,null,null,null,null,null,null,null,null,null,null,null,null,null,null,null,null,null,null,null,null,null,null,null,null,null,null,null,null,null,null,null,null,null,null,null,null,null,null,null,null,null,null,null,null,null,null,null,null,153,"YOKOHAMA - JAPAN","MASTER OF M/V (Vessel Name) C/O UCI JP - Lantimar ","305-A Cargo Agent Bldg No. 1, ","Narita Airport, Chiba, Japan 282-0004","Paula Aviles / \nAlicia Diaz / \nMr Nakaya ","34 649989974 / \n34 629401166 / \n81-6-6265-0051                       ","starboard@lantimar.com; logistics.japan@lantimar.com"]
[null,null,null,null,null,null,null,null,null,null,null,null,null,null,null,null,null,null,null,null,null,null,null,null,null,null,null,null,null,null,null,null,null,null,null,null,null,null,null,null,null,null,null,null,null,null,null,null,null,null,null,null,null,null,null,null,null,154]
[null,null,null,null,null,null,null,null,null,null,null,null,null,null,null,null,null,null,null,null,null,null,null,null,null,null,null,null,null,null,null,null,null,null,null,null,null,null,null,null,null,null,null,null,null,null,null,null,null,null,null,null,null,null,null,null,null,155]
[null,null,null,null,null,null,null,null,null,null,null,null,null,null,null,null,null,null,null,null,null,null,null,null,null,null,null,null,null,null,null,null,null,null,null,null,null,null,null,null,null,null,null,null,null,null,null,null,null,null,null,null,null,null,null,null,null,156]
[null,null,null,null,null,null,null,null,null,null,null,null,null,null,null,null,null,null,null,null,null,null,null,null,null,null,null,null,null,null,null,null,null,null,null,null,null,null,null,null,null,null,null,null,null,null,null,null,null,null,null,null,null,null,null,null,null,157]
[null,null,null,null,null,null,null,null,null,null,null,null,null,null,null,null,null,null,null,null,null,null,null,null,null,null,null,null,null,null,null,null,null,null,null,null,null,null,null,null,null,null,null,null,null,null,null,null,null,null,null,null,null,null,null,null,null,158]
[null,null,null,null,null,null,null,null,null,null,null,null,null,null,null,null,null,null,null,null,null,null,null,null,null,null,null,null,null,null,null,null,null,null,null,null,null,null,null,null,null,null,null,null,null,null,null,null,null,null,null,null,null,null,null,null,null,159]
[null,null,null,null,null,null,null,null,null,null,null,null,null,null,null,null,null,null,null,null,null,null,null,null,null,null,null,null,null,null,null,null,null,null,null,null,null,null,null,null,null,null,null,null,null,null,null,null,null,null,null,null,null,null,null,null,null,160]

{"sheet":"Form Instruction ","index":1,"n_rows":145,"n_cols":3,"rows_kept":145,"cut":false,"hidden":false,"merged":[]}
[]
[]
[]
[]
[]
[]
[]
[]
[]
[]
[]
[]
[]
[]
[]
[]
[]
[]
[]
[]
[]
[]
[]
[]
[]
[]
[]
[]
[]
[]
[]
[]
[]
[]
[]
[]
[]
[]
[null," "]
[null," "]
[]
[]
[]
[]
[]
[]
[]
[]
[]
[]
[]
[]
[]
[]
[]
[]
[]
[]
[]
[]
[]
[]
[]
[]
[]
[]
[]
[]
[]
[]
[]
[]
[]
[]
[]
[]
[]
[null,null," "]
[]
[]
[]
[]
[]
[]
[]
[]
[]
[]
[]
[]
[]
[]
[]
[]
[]
[]
[]
[]
[]
[]
[]
[]
[]
[]
[]
[]
[]
[]
[]
[]
[]
[]
[]
[]
[]
[]
[]
[]
[]
[]
[]
[]
[]
[]
[]
[]
[]
[]
[]
[]
[]
[]
[]
[]
[]
[]
[]
[]
[]
[]
[]
[]
[]
[]
[null,null,"Once form is complete please review and send to the E-mail address indicated in the contact field in the center of the form.  The E-mail address will be updated based on the correct form type."]